Workbook

Sheet Interfaz
C5: POBLACIÓN ASIGNADA SEGÚN CENSOS INEI - RENIEC - PN - CNV - 2017
C10: RED INTEGRADA DE SALUD HUAURA OYÓN
A22: Elaboración: Área de Estadística - RIS Huaura Oyón.
A23: NOTA: LA POBLACION ESTIMADA DE EDADES SIMPLES Y GRUPOS DE EDAD DE DISTRITOS, CORRESPONDEN A CIFRAS REFERENCIALES HASTA OBTENER LAS CIFRAS DE LAS PROYECCIONES DEL INEI
A26: OFICINA DE GESTION DE LA INFORMACIÓN - MINISTERIO DE SALUD
R27: Versión1.030

Sheet Poblacion
C1: 1 | D1: 2 | E1: 3 | F1: 4 | G1: 5 | H1: 6 | I1: 7 | J1: 8 | K1: 9 | L1: 10 | M1: 11 | N1: 12 | O1: 13 | P1: 14 | Q1: 15 | R1: 16 | S1: 17 | T1: 18 | U1: 19 | V1: 20 | W1: 21 | X1: 22 | Y1: 23 | Z1: 24 | AA1: 25 | AB1: 26 | AC1: 27 | AD1: 28 | AE1: 29 | AF1: 30 | AG1: 31 | AH1: 32 | AI1: 33 | AJ1: 34 | AK1: 35 | AL1: 36 | AM1: 37 | AN1: 38 | AO1: 39 | AP1: 40 | AQ1: 41 | AR1: 42 | AS1: 43 | AT1: 44 | AU1: 45 | AV1: 46 | AW1: 47 | AX1: 48 | AY1: 49 | AZ1: 50 | BA1: 51 | BB1: 52 | BC1: 53 | BD1: 54 | BE1: 55 | BF1: 56 | BG1: 57 | BH1: 58 | BI1: 59 | BJ1: 60 | BK1: 61 | BL1: 62 | BM1: 63 | BN1: 64 | BO1: 65 | BP1: 66 | BQ1: 67 | BR1: 68 | BS1: 69 | BT1: 70 | BU1: 71 | BV1: 72 | BW1: 73 | BX1: 74 | BY1: 75 | BZ1: 76 | CA1: 77 | CB1: 78 | CC1: 79 | CD1: 80 | CE1: 81 | CF1: 82 | CG1: 83 | CH1: 84 | CI1: 85 | CJ1: 86 | CK1: 87 | CL1: 88 | CM1: 89 | CN1: 90 | CO1: 91 | CP1: 92 | CT1: 77 | CU1: 78 | CV1: 79 | CW1: 80 | CX1: 81 | CY1: 82 | CZ1: 83 | DA1: 84 | DB1: 85 | DC1: 86 | DD1: 87 | DE1: 88 | DF1: 89 | DG1: 90 | DH1: 91 | DI1: 92 | DJ1: 93 | DK1: 94 | DL1: 95 | DM1: 96 | DN1: 97 | DO1: 98 | DP1: 99 | DQ1: 106 | DR1: 107 | DS1: 108 | DT1: 109 | DU1: 110 | DV1: 111
AE2: POBLACIÓN ESTIMADA POR GRUPOS DE EDAD, SEGÚN PROVINCIAS DISTRITOS Y ESTABLECIMIENTOS DE SALUD
AE3: RED INTEGRADA DE SALUD HUAURA OYON - AÑO 2020 | BW3: =ROUND(BY3,0) -> 0 | CJ3: MAS GRUPOS DE EDAD
AE4: EDADES PUNTUALES Y GRUPOS DE EDAD
C5: N° | E5: DIRECCION DE SALUD | F5: TOTAL GENERAL | H5: TOTAL MASCULINO | I5: TOTAL FEMENINO | K5: EDAD | M5: EDAD | O5: EDAD | Q5: EDAD | S5: EDAD | U5: EDAD | W5: EDAD | Y5: EDAD | AA5: EDAD | AC5: EDAD | AE5: EDAD | AG5: EDAD | AI5: EDAD | AK5: EDAD | AM5: EDAD | AO5: EDAD | AQ5: EDAD | AS5: EDAD | AU5: EDAD | AW5: EDAD | AY5: EDAD | BA5: EDAD | BC5: EDAD | BE5: EDAD | BG5: EDAD | BI5: EDAD | BK5: EDAD | BM5: EDAD | BO5: EDAD | BQ5: EDAD | BS5: EDAD | BU5: EDAD | BW5: EDAD | BY5: NACIMIENTOS | BZ5: POBLACION FEMENINA | CE5: menor de 1 Año | CF5: Pre escolar (1-4) | CG5: Niño (0 - 11) | CH5: Escolar (05 - 17) | CI5: Adolescente (12 - 17) | CJ5: Adulto Joven (18 - 29) | CK5: Adulto (30-59) | CL5: Adu.Mayor (60 a MAS) | CN5: Escolar (05 - 09) | CO5: Adolescente (10 - 19) | CP5: Adulto (20-59)
A6: UBIGEO | E6: PROVINCIA | K6: 0 | M6: 1 | O6: 2 | Q6: 3 | S6: 4 | U6: 5 | W6: 6 | Y6: 7 | AA6: 8 | AC6: 9 | AE6: 10 | AG6: 11 | AI6: 12 | AK6: 13 | AM6: 14 | AO6: 15 | AQ6: 16 | AS6: 17 | AU6: 18 | AW6: 19 | AY6: 20 - 24 | BA6: 25 - 29 | BC6: 30 - 34 | BE6: 35 - 39 | BG6: 40 - 44 | BI6: 45 - 49 | BK6: 50 - 54 | BM6: 55 - 59 | BO6: 60 - 64 | BQ6: 65 - 69 | BS6: 70- 74 | BU6: 75 - 79 | BW6: 80 - + | BZ6: 10-14 | CA6: 15-19 | CB6: 20-49 | CC6: GESTANTE
B7: Microredes | D7: RENAES | E7: DISTRITO | K7: M | L7: F | M7: M | N7: F | O7: M | P7: F | Q7: M | R7: F | S7: M | T7: F | U7: M | V7: F | W7: M | X7: F | Y7: M | Z7: F | AA7: M | AB7: F | AC7: M | AD7: F | AE7: M | AF7: F | AG7: M | AH7: F | AI7: M | AJ7: F | AK7: M | AL7: F | AM7: M | AN7: F | AO7: M | AP7: F | AQ7: M | AR7: F | AS7: M | AT7: F | AU7: M | AV7: F | AW7: M | AX7: F | AY7: M | AZ7: F | BA7: M | BB7: F | BC7: M | BD7: F | BE7: M | BF7: F | BG7: M | BH7: F | BI7: M | BJ7: F | BK7: M | BL7: F | BM7: M | BN7: F | BO7: M | BP7: F | BQ7: M | BR7: F | BS7: M | BT7: F | BU7: M | BV7: F | BW7: M | BX7: F
A8: 150000 | C8: 1 | E8: HUAURA - OYON | F8: 252031 | H8: 126566 | I8: 125465 | K8: 2243 | L8: 2172 | M8: 2169 | N8: 2111 | O8: 1992 | P8: 1860 | Q8: 2104 | R8: 2097 | S8: 2065 | T8: 1943 | U8: 2039 | V8: 1889 | W8: 2238 | X8: 2143 | Y8: 2402 | Z8: 2236 | AA8: 2280 | AB8: 2225 | AC8: 2130 | AD8: 2063 | AE8: 2151 | AF8: 2185 | AG8: 2121 | AH8: 2042 | AI8: 2043 | AJ8: 1998 | AK8: 2070 | AL8: 1928 | AM8: 1926 | AN8: 1923 | AO8: 1866 | AP8: 1774 | AQ8: 1919 | AR8: 1864 | AS8: 2034 | AT8: 1943 | AU8: 2004 | AV8: 1932 | AW8: 2229 | AX8: 2137 | AY8: 11368 | AZ8: 11227 | BA8: 10269 | BB8: 10375 | BC8: 9773 | BD8: 9781 | BE8: 8964 | BF8: 8829 | BG8: 8227 | BH8: 8297 | BI8: 7318 | BJ8: 7371 | BK8: 6453 | BL8: 6576 | BM8: 5519 | BN8: 5460 | BO8: 4606 | BP8: 4643 | BQ8: 3820 | BR8: 3755 | BS8: 2968 | BT8: 2991 | BU8: 2271 | BV8: 2310 | BW8: 2985 | BX8: 3385 | BY8: 5061 | BZ8: 10076 | CA8: 9650 | CB8: 55880 | CC8: 5947 | CE8: =SUM(K8:L8) -> 4415 | CF8: =SUM(M8:T8) -> 16341 | CG8: =SUM(K8:AH8) -> 50900 | CH8: =SUM(U8:AT8) -> 53432 | CI8: =SUM(AI8:AT8) -> 23288 | CJ8: =SUM(AU8:BB8) -> 51541 | CK8: =SUM(BC8:BN8) -> 92568 | CL8: =SUM(BO8:BX8) -> 33734 | CN8: =SUM(U8:AD8) -> 21645 | CO8: =SUM(AE8:AX8) -> 40089 | CP8: =SUM(AY8:BN8) -> 135807
A9: 150800 | C9: 2 | D9: 150800 | E9: PROVINCIA HUAURA | F9: 231741 | H9: 116378 | I9: 115363 | K9: 2107 | L9: 2072 | M9: 2019 | N9: 1974 | O9: 1859 | P9: 1736 | Q9: 1949 | R9: 1919 | S9: 1868 | T9: 1783 | U9: 1846 | V9: 1697 | W9: 2030 | X9: 1944 | Y9: 2183 | Z9: 1998 | AA9: 2050 | AB9: 1996 | AC9: 1941 | AD9: 1854 | AE9: 1917 | AF9: 1950 | AG9: 1907 | AH9: 1801 | AI9: 1838 | AJ9: 1799 | AK9: 1846 | AL9: 1727 | AM9: 1724 | AN9: 1724 | AO9: 1672 | AP9: 1581 | AQ9: 1712 | AR9: 1674 | AS9: 1848 | AT9: 1788 | AU9: 1816 | AV9: 1763 | AW9: 2058 | AX9: 1979 | AY9: 10480 | AZ9: 10349 | BA9: 9527 | BB9: 9617 | BC9: 9063 | BD9: 9060 | BE9: 8366 | BF9: 8265 | BG9: 7606 | BH9: 7731 | BI9: 6771 | BJ9: 6820 | BK9: 5951 | BL9: 6080 | BM9: 5062 | BN9: 5036 | BO9: 4251 | BP9: 4305 | BQ9: 3510 | BR9: 3478 | BS9: 2753 | BT9: 2720 | BU9: 2084 | BV9: 2094 | BW9: 2764 | BX9: 3049 | BY9: 4559 | BZ9: 9001 | CA9: 8785 | CB9: 51842 | CC9: 5207 | CE9: =SUM(K9:L9) -> 4179 | CF9: =SUM(M9:T9) -> 15107 | CG9: =SUM(K9:AH9) -> 46400 | CH9: =SUM(U9:AT9) -> 48047 | CI9: =SUM(AI9:AT9) -> 20933 | CJ9: =SUM(AU9:BB9) -> 47589 | CK9: =SUM(BC9:BN9) -> 85811 | CL9: =SUM(BO9:BX9) -> 31008 | CN9: 19539 | CO9: 36124 | CP9: 125784
A10: 150801 | C10: 3 | D10: 150802 | E10: DISTRITO HUACHO | F10: 69564 | H10: 34217 | I10: 35347 | K10: 962 | L10: 954 | M10: 773 | N10: 746 | O10: 502 | P10: 448 | Q10: 580 | R10: 602 | S10: 658 | T10: 623 | U10: 656 | V10: 642 | W10: 546 | X10: 488 | Y10: 535 | Z10: 521 | AA10: 520 | AB10: 537 | AC10: 483 | AD10: 497 | AE10: 496 | AF10: 535 | AG10: 490 | AH10: 483 | AI10: 483 | AJ10: 500 | AK10: 507 | AL10: 447 | AM10: 455 | AN10: 444 | AO10: 448 | AP10: 444 | AQ10: 439 | AR10: 437 | AS10: 498 | AT10: 461 | AU10: 471 | AV10: 477 | AW10: 536 | AX10: 508 | AY10: 2661 | AZ10: 2834 | BA10: 2512 | BB10: 2646 | BC10: 2519 | BD10: 2542 | BE10: 2428 | BF10: 2472 | BG10: 2252 | BH10: 2372 | BI10: 2130 | BJ10: 2235 | BK10: 1910 | BL10: 2052 | BM10: 1665 | BN10: 1781 | BO10: 1455 | BP10: 1545 | BQ10: 1143 | BR10: 1268 | BS10: 869 | BT10: 926 | BU10: 731 | BV10: 755 | BW10: 904 | BX10: 1125 | BY10: 1200 | BZ10: 2409 | CA10: 2327 | CB10: 15101 | CC10: 1249 | CE10: 1916 | CF10: 4932 | CG10: 14277 | CH10: 12992 | CI10: 5563 | CJ10: 12645 | CK10: 26358 | CL10: 10721 | CN10: 5425 | CO10: 9559 | CP10: 37011
B11: 00 | C11: 4 | D11: 7639 | E11: HOSPITAL HUACHO | F11: 52173 | H11: 25663 | I11: 26510 | K11: 721 | L11: 716 | M11: 580 | N11: 559 | O11: 376 | P11: 336 | Q11: 435 | R11: 451 | S11: 493 | T11: 468 | U11: 492 | V11: 481 | W11: 409 | X11: 366 | Y11: 401 | Z11: 391 | AA11: 390 | AB11: 403 | AC11: 362 | AD11: 373 | AE11: 372 | AF11: 401 | AG11: 367 | AH11: 363 | AI11: 362 | AJ11: 375 | AK11: 380 | AL11: 336 | AM11: 341 | AN11: 333 | AO11: 336 | AP11: 333 | AQ11: 329 | AR11: 328 | AS11: 373 | AT11: 346 | AU11: 353 | AV11: 358 | AW11: 402 | AX11: 381 | AY11: 1995 | AZ11: 2126 | BA11: 1884 | BB11: 1984 | BC11: 1888 | BD11: 1906 | BE11: 1820 | BF11: 1854 | BG11: 1689 | BH11: 1779 | BI11: 1598 | BJ11: 1675 | BK11: 1433 | BL11: 1538 | BM11: 1249 | BN11: 1336 | BO11: 1092 | BP11: 1158 | BQ11: 858 | BR11: 951 | BS11: 653 | BT11: 695 | BU11: 549 | BV11: 567 | BW11: 681 | BX11: 843 | BY11: 900 | BZ11: 1808 | CA11: 1746 | CB11: 11324 | CC11: 937 | CE11: 1437 | CF11: 3698 | CG11: 10706 | CH11: 9743 | CI11: 4172 | CJ11: 9483 | CK11: 19765 | CL11: 8047 | CN11: 4068 | CO11: 7169 | CP11: 27754
B12: 02 | C12: 5 | D12: 5679 | E12: C.S. MANZANARES | F12: 17391 | H12: 8554 | I12: 8837 | K12: 241 | L12: 238 | M12: 193 | N12: 187 | O12: 126 | P12: 112 | Q12: 145 | R12: 151 | S12: 165 | T12: 155 | U12: 164 | V12: 161 | W12: 137 | X12: 122 | Y12: 134 | Z12: 130 | AA12: 130 | AB12: 134 | AC12: 121 | AD12: 124 | AE12: 124 | AF12: 134 | AG12: 123 | AH12: 120 | AI12: 121 | AJ12: 125 | AK12: 127 | AL12: 111 | AM12: 114 | AN12: 111 | AO12: 112 | AP12: 111 | AQ12: 110 | AR12: 109 | AS12: 125 | AT12: 115 | AU12: 118 | AV12: 119 | AW12: 134 | AX12: 127 | AY12: 666 | AZ12: 708 | BA12: 628 | BB12: 662 | BC12: 631 | BD12: 636 | BE12: 608 | BF12: 618 | BG12: 563 | BH12: 593 | BI12: 532 | BJ12: 560 | BK12: 477 | BL12: 514 | BM12: 416 | BN12: 445 | BO12: 363 | BP12: 387 | BQ12: 285 | BR12: 317 | BS12: 216 | BT12: 231 | BU12: 182 | BV12: 188 | BW12: 223 | BX12: 282 | BY12: 300 | BZ12: 601 | CA12: 581 | CB12: 3777 | CC12: 312 | CE12: 479 | CF12: 1234 | CG12: 3571 | CH12: 3249 | CI12: 1391 | CJ12: 3162 | CK12: 6593 | CL12: 2674 | CN12: 1357 | CO12: 2390 | CP12: 9257
A13: 150802 | C13: 6 | D13: 150802 | E13: DISTRITO AMBAR | F13: 2210 | H13: 1197 | I13: 1013 | K13: 24 | L13: 16 | M13: 29 | N13: 16 | O13: 18 | P13: 12 | Q13: 29 | R13: 15 | S13: 24 | T13: 21 | U13: 16 | V13: 21 | W13: 21 | X13: 18 | Y13: 25 | Z13: 16 | AA13: 22 | AB13: 17 | AC13: 18 | AD13: 19 | AE13: 15 | AF13: 22 | AG13: 19 | AH13: 10 | AI13: 19 | AJ13: 21 | AK13: 22 | AL13: 14 | AM13: 21 | AN13: 28 | AO13: 23 | AP13: 19 | AQ13: 24 | AR13: 26 | AS13: 14 | AT13: 15 | AU13: 25 | AV13: 18 | AW13: 28 | AX13: 12 | AY13: 102 | AZ13: 103 | BA13: 66 | BB13: 72 | BC13: 78 | BD13: 78 | BE13: 67 | BF13: 43 | BG13: 73 | BH13: 52 | BI13: 55 | BJ13: 56 | BK13: 75 | BL13: 46 | BM13: 53 | BN13: 54 | BO13: 50 | BP13: 42 | BQ13: 44 | BR13: 23 | BS13: 43 | BT13: 14 | BU13: 19 | BV13: 29 | BW13: 36 | BX13: 45 | BY13: 40 | BZ13: 95 | CA13: 90 | CB13: 404 | CC13: 60 | CE13: 40 | CF13: 164 | CG13: 463 | CH13: 505 | CI13: 246 | CJ13: 426 | CK13: 730 | CL13: 345 | CN13: 193 | CO13: 395 | CP13: 1073
B14: 01 | C14: 7 | D14: 5680 | E14: C.S. AMBAR | F14: 1323 | H14: 718 | I14: 605 | K14: 14 | L14: 10 | M14: 17 | N14: 10 | O14: 11 | P14: 7 | Q14: 17 | R14: 9 | S14: 14 | T14: 13 | U14: 10 | V14: 12 | W14: 13 | X14: 10 | Y14: 15 | Z14: 10 | AA14: 13 | AB14: 10 | AC14: 11 | AD14: 11 | AE14: 9 | AF14: 13 | AG14: 11 | AH14: 6 | AI14: 11 | AJ14: 13 | AK14: 13 | AL14: 9 | AM14: 13 | AN14: 16 | AO14: 14 | AP14: 11 | AQ14: 14 | AR14: 16 | AS14: 8 | AT14: 9 | AU14: 15 | AV14: 11 | AW14: 17 | AX14: 7 | AY14: 62 | AZ14: 62 | BA14: 39 | BB14: 44 | BC14: 46 | BD14: 47 | BE14: 41 | BF14: 24 | BG14: 44 | BH14: 31 | BI14: 33 | BJ14: 34 | BK14: 45 | BL14: 27 | BM14: 31 | BN14: 33 | BO14: 30 | BP14: 25 | BQ14: 26 | BR14: 15 | BS14: 26 | BT14: 8 | BU14: 12 | BV14: 16 | BW14: 23 | BX14: 26 | BY14: 24 | BZ14: 57 | CA14: 54 | CB14: 242 | CC14: 36 | CE14: 24 | CF14: 98 | CG14: 276 | CH14: 301 | CI14: 147 | CJ14: 257 | CK14: 436 | CL14: 207 | CN14: 115 | CO14: 236 | CP14: 643
B15: 01 | C15: 8 | D15: 5681 | E15: P.S. AYNACA | F15: 887 | H15: 479 | I15: 408 | K15: 10 | L15: 6 | M15: 12 | N15: 6 | O15: 7 | P15: 5 | Q15: 12 | R15: 6 | S15: 10 | T15: 8 | U15: 6 | V15: 9 | W15: 8 | X15: 8 | Y15: 10 | Z15: 6 | AA15: 9 | AB15: 7 | AC15: 7 | AD15: 8 | AE15: 6 | AF15: 9 | AG15: 8 | AH15: 4 | AI15: 8 | AJ15: 8 | AK15: 9 | AL15: 5 | AM15: 8 | AN15: 12 | AO15: 9 | AP15: 8 | AQ15: 10 | AR15: 10 | AS15: 6 | AT15: 6 | AU15: 10 | AV15: 7 | AW15: 11 | AX15: 5 | AY15: 40 | AZ15: 41 | BA15: 27 | BB15: 28 | BC15: 32 | BD15: 31 | BE15: 26 | BF15: 19 | BG15: 29 | BH15: 21 | BI15: 22 | BJ15: 22 | BK15: 30 | BL15: 19 | BM15: 22 | BN15: 21 | BO15: 20 | BP15: 17 | BQ15: 18 | BR15: 8 | BS15: 17 | BT15: 6 | BU15: 7 | BV15: 13 | BW15: 13 | BX15: 19 | BY15: 16 | BZ15: 38 | CA15: 36 | CB15: 162 | CC15: 24 | CE15: 16 | CF15: 66 | CG15: 187 | CH15: 204 | CI15: 99 | CJ15: 169 | CK15: 294 | CL15: 138 | CN15: 78 | CO15: 159 | CP15: 430
A16: 150803 | C16: 9 | D16: 150803 | E16: DISTRITO CARQUIN | F16: 6380 | H16: 3285 | I16: 3095 | K16: 39 | L16: 42 | M16: 34 | N16: 44 | O16: 40 | P16: 38 | Q16: 50 | R16: 37 | S16: 42 | T16: 41 | U16: 40 | V16: 41 | W16: 70 | X16: 61 | Y16: 65 | Z16: 51 | AA16: 78 | AB16: 63 | AC16: 55 | AD16: 60 | AE16: 65 | AF16: 58 | AG16: 66 | AH16: 64 | AI16: 55 | AJ16: 56 | AK16: 42 | AL16: 40 | AM16: 45 | AN16: 46 | AO16: 51 | AP16: 54 | AQ16: 54 | AR16: 61 | AS16: 52 | AT16: 42 | AU16: 52 | AV16: 41 | AW16: 54 | AX16: 50 | AY16: 282 | AZ16: 259 | BA16: 263 | BB16: 270 | BC16: 271 | BD16: 246 | BE16: 252 | BF16: 258 | BG16: 227 | BH16: 199 | BI16: 192 | BJ16: 180 | BK16: 173 | BL16: 170 | BM16: 147 | BN16: 120 | BO16: 113 | BP16: 116 | BQ16: 103 | BR16: 93 | BS16: 73 | BT16: 73 | BU16: 76 | BV16: 54 | BW16: 64 | BX16: 67 | BY16: 127 | BZ16: 264 | CA16: 248 | CB16: 1412 | CC16: 174 | CE16: 81 | CF16: 326 | CG16: 1244 | CH16: 1435 | CI16: 598 | CJ16: 1271 | CK16: 2435 | CL16: 832 | CN16: 584 | CO16: 1048 | CP16: 3509
B17: 02 | C17: 10 | D17: 5664 | E17: P.S. CARQUIN | F17: 6380 | H17: 3285 | I17: 3095 | K17: 39 | L17: 42 | M17: 34 | N17: 44 | O17: 40 | P17: 38 | Q17: 50 | R17: 37 | S17: 42 | T17: 41 | U17: 40 | V17: 41 | W17: 70 | X17: 61 | Y17: 65 | Z17: 51 | AA17: 78 | AB17: 63 | AC17: 55 | AD17: 60 | AE17: 65 | AF17: 58 | AG17: 66 | AH17: 64 | AI17: 55 | AJ17: 56 | AK17: 42 | AL17: 40 | AM17: 45 | AN17: 46 | AO17: 51 | AP17: 54 | AQ17: 54 | AR17: 61 | AS17: 52 | AT17: 42 | AU17: 52 | AV17: 41 | AW17: 54 | AX17: 50 | AY17: 282 | AZ17: 259 | BA17: 263 | BB17: 270 | BC17: 271 | BD17: 246 | BE17: 252 | BF17: 258 | BG17: 227 | BH17: 199 | BI17: 192 | BJ17: 180 | BK17: 173 | BL17: 170 | BM17: 147 | BN17: 120 | BO17: 113 | BP17: 116 | BQ17: 103 | BR17: 93 | BS17: 73 | BT17: 73 | BU17: 76 | BV17: 54 | BW17: 64 | BX17: 67 | BY17: 127 | BZ17: 264 | CA17: 248 | CB17: 1412 | CC17: 174 | CE17: 81 | CF17: 326 | CG17: 1244 | CH17: 1435 | CI17: 598 | CJ17: 1271 | CK17: 2435 | CL17: 832 | CN17: 584 | CO17: 1048 | CP17: 3509
A18: 150804 | C18: 11 | D18: 150804 | E18: DISTRITO CHECRAS | F18: 1018 | H18: 501 | I18: 517 | K18: 2 | L18: 3 | M18: 3 | N18: 1 | O18: 2 | P18: 1 | Q18: 2 | R18: 1 | S18: 1 | T18: 0 | U18: 5 | V18: 0 | W18: 8 | X18: 9 | Y18: 7 | Z18: 11 | AA18: 14 | AB18: 7 | AC18: 11 | AD18: 7 | AE18: 6 | AF18: 9 | AG18: 20 | AH18: 15 | AI18: 14 | AJ18: 9 | AK18: 6 | AL18: 13 | AM18: 11 | AN18: 5 | AO18: 3 | AP18: 9 | AQ18: 3 | AR18: 10 | AS18: 8 | AT18: 7 | AU18: 6 | AV18: 4 | AW18: 10 | AX18: 10 | AY18: 35 | AZ18: 22 | BA18: 22 | BB18: 25 | BC18: 21 | BD18: 29 | BE18: 22 | BF18: 14 | BG18: 28 | BH18: 21 | BI18: 29 | BJ18: 33 | BK18: 43 | BL18: 27 | BM18: 26 | BN18: 24 | BO18: 33 | BP18: 33 | BQ18: 29 | BR18: 31 | BS18: 17 | BT18: 26 | BU18: 26 | BV18: 28 | BW18: 28 | BX18: 73 | BY18: 21 | BZ18: 51 | CA18: 40 | CB18: 144 | CC18: 47 | CE18: 5 | CF18: 11 | CG18: 145 | CH18: 227 | CI18: 98 | CJ18: 134 | CK18: 317 | CL18: 324 | CN18: 79 | CO18: 178 | CP18: 421
B19: 05 | C19: 12 | D19: 5663 | E19: P.S. PUÑUN | F19: 1018 | H19: 501 | I19: 517 | K19: 2 | L19: 3 | M19: 3 | N19: 1 | O19: 2 | P19: 1 | Q19: 2 | R19: 1 | S19: 1 | T19: 0 | U19: 5 | V19: 0 | W19: 8 | X19: 9 | Y19: 7 | Z19: 11 | AA19: 14 | AB19: 7 | AC19: 11 | AD19: 7 | AE19: 6 | AF19: 9 | AG19: 20 | AH19: 15 | AI19: 14 | AJ19: 9 | AK19: 6 | AL19: 13 | AM19: 11 | AN19: 5 | AO19: 3 | AP19: 9 | AQ19: 3 | AR19: 10 | AS19: 8 | AT19: 7 | AU19: 6 | AV19: 4 | AW19: 10 | AX19: 10 | AY19: 35 | AZ19: 22 | BA19: 22 | BB19: 25 | BC19: 21 | BD19: 29 | BE19: 22 | BF19: 14 | BG19: 28 | BH19: 21 | BI19: 29 | BJ19: 33 | BK19: 43 | BL19: 27 | BM19: 26 | BN19: 24 | BO19: 33 | BP19: 33 | BQ19: 29 | BR19: 31 | BS19: 17 | BT19: 26 | BU19: 26 | BV19: 28 | BW19: 28 | BX19: 73 | BY19: 21 | BZ19: 51 | CA19: 40 | CB19: 144 | CC19: 47 | CE19: 5 | CF19: 11 | CG19: 145 | CH19: 227 | CI19: 98 | CJ19: 134 | CK19: 317 | CL19: 324 | CN19: 79 | CO19: 178 | CP19: 421
A20: 150805 | C20: 13 | D20: 150805 | E20: DISTRITO HUALMAY | F20: 27960 | H20: 13898 | I20: 14062 | K20: 174 | L20: 171 | M20: 183 | N20: 200 | O20: 234 | P20: 226 | Q20: 254 | R20: 208 | S20: 205 | T20: 219 | U20: 195 | V20: 164 | W20: 216 | X20: 225 | Y20: 254 | Z20: 245 | AA20: 253 | AB20: 251 | AC20: 230 | AD20: 242 | AE20: 222 | AF20: 226 | AG20: 215 | AH20: 223 | AI20: 220 | AJ20: 205 | AK20: 241 | AL20: 211 | AM20: 186 | AN20: 210 | AO20: 197 | AP20: 169 | AQ20: 203 | AR20: 220 | AS20: 241 | AT20: 224 | AU20: 232 | AV20: 226 | AW20: 244 | AX20: 254 | AY20: 1314 | AZ20: 1315 | BA20: 1216 | BB20: 1178 | BC20: 1109 | BD20: 1199 | BE20: 1039 | BF20: 1053 | BG20: 991 | BH20: 1008 | BI20: 868 | BJ20: 793 | BK20: 696 | BL20: 717 | BM20: 557 | BN20: 552 | BO20: 466 | BP20: 533 | BQ20: 384 | BR20: 402 | BS20: 321 | BT20: 356 | BU20: 212 | BV20: 263 | BW20: 326 | BX20: 374 | BY20: 573 | BZ20: 1075 | CA20: 1093 | CB20: 6546 | CC20: 674 | CE20: 345 | CF20: 1729 | CG20: 5235 | CH20: 5688 | CI20: 2527 | CJ20: 5979 | CK20: 10582 | CL20: 3637 | CN20: 2275 | CO20: 4369 | CP20: 15605
B21: 02 | C21: 14 | D21: 5665 | E21: C.S. HUALMAY | F21: 13980 | H21: 6949 | I21: 7031 | K21: 87 | L21: 85 | M21: 92 | N21: 100 | O21: 117 | P21: 113 | Q21: 127 | R21: 104 | S21: 102 | T21: 110 | U21: 98 | V21: 81 | W21: 108 | X21: 113 | Y21: 127 | Z21: 122 | AA21: 127 | AB21: 125 | AC21: 115 | AD21: 121 | AE21: 111 | AF21: 113 | AG21: 108 | AH21: 111 | AI21: 110 | AJ21: 102 | AK21: 121 | AL21: 105 | AM21: 93 | AN21: 105 | AO21: 99 | AP21: 84 | AQ21: 102 | AR21: 110 | AS21: 121 | AT21: 111 | AU21: 116 | AV21: 113 | AW21: 122 | AX21: 127 | AY21: 657 | AZ21: 658 | BA21: 608 | BB21: 590 | BC21: 553 | BD21: 600 | BE21: 519 | BF21: 526 | BG21: 494 | BH21: 505 | BI21: 432 | BJ21: 398 | BK21: 347 | BL21: 358 | BM21: 279 | BN21: 276 | BO21: 233 | BP21: 265 | BQ21: 191 | BR21: 201 | BS21: 161 | BT21: 178 | BU21: 107 | BV21: 132 | BW21: 165 | BX21: 189 | BY21: 286 | BZ21: 536 | CA21: 545 | CB21: 3277 | CC21: 337 | CE21: 172 | CF21: 865 | CG21: 2617 | CH21: 2843 | CI21: 1263 | CJ21: 2991 | CK21: 5287 | CL21: 1822 | CN21: 1137 | CO21: 2184 | CP21: 7800
B22: 02 | C22: 15 | D22: 5666 | E22: P.S. DGO. MANDAMIENTO | F22: 9786 | H22: 4864 | I22: 4922 | K22: 61 | L22: 60 | M22: 64 | N22: 70 | O22: 82 | P22: 79 | Q22: 89 | R22: 73 | S22: 72 | T22: 76 | U22: 68 | V22: 58 | W22: 76 | X22: 78 | Y22: 89 | Z22: 86 | AA22: 88 | AB22: 88 | AC22: 80 | AD22: 85 | AE22: 78 | AF22: 79 | AG22: 75 | AH22: 78 | AI22: 77 | AJ22: 72 | AK22: 84 | AL22: 74 | AM22: 65 | AN22: 74 | AO22: 69 | AP22: 59 | AQ22: 71 | AR22: 77 | AS22: 84 | AT22: 79 | AU22: 81 | AV22: 79 | AW22: 85 | AX22: 89 | AY22: 460 | AZ22: 460 | BA22: 426 | BB22: 412 | BC22: 389 | BD22: 420 | BE22: 363 | BF22: 370 | BG22: 348 | BH22: 352 | BI22: 305 | BJ22: 277 | BK22: 245 | BL22: 251 | BM22: 194 | BN22: 194 | BO22: 163 | BP22: 187 | BQ22: 135 | BR22: 140 | BS22: 112 | BT22: 124 | BU22: 74 | BV22: 91 | BW22: 112 | BX22: 131 | BY22: 201 | BZ22: 377 | CA22: 383 | CB22: 2291 | CC22: 236 | CE22: 121 | CF22: 605 | CG22: 1832 | CH22: 1991 | CI22: 885 | CJ22: 2092 | CK22: 3708 | CL22: 1269 | CN22: 796 | CO22: 1529 | CP22: 5466
B23: 02 | C23: 16 | D23: 5667 | E23: P.S. CAMPO ALEGRE | F23: 4194 | H23: 2085 | I23: 2109 | K23: 26 | L23: 26 | M23: 27 | N23: 30 | O23: 35 | P23: 34 | Q23: 38 | R23: 31 | S23: 31 | T23: 33 | U23: 29 | V23: 25 | W23: 32 | X23: 34 | Y23: 38 | Z23: 37 | AA23: 38 | AB23: 38 | AC23: 35 | AD23: 36 | AE23: 33 | AF23: 34 | AG23: 32 | AH23: 34 | AI23: 33 | AJ23: 31 | AK23: 36 | AL23: 32 | AM23: 28 | AN23: 31 | AO23: 29 | AP23: 26 | AQ23: 30 | AR23: 33 | AS23: 36 | AT23: 34 | AU23: 35 | AV23: 34 | AW23: 37 | AX23: 38 | AY23: 197 | AZ23: 197 | BA23: 182 | BB23: 176 | BC23: 167 | BD23: 179 | BE23: 157 | BF23: 157 | BG23: 149 | BH23: 151 | BI23: 131 | BJ23: 118 | BK23: 104 | BL23: 108 | BM23: 84 | BN23: 82 | BO23: 70 | BP23: 81 | BQ23: 58 | BR23: 61 | BS23: 48 | BT23: 54 | BU23: 31 | BV23: 40 | BW23: 49 | BX23: 54 | BY23: 86 | BZ23: 162 | CA23: 165 | CB23: 978 | CC23: 101 | CE23: 52 | CF23: 259 | CG23: 786 | CH23: 854 | CI23: 379 | CJ23: 896 | CK23: 1587 | CL23: 546 | CN23: 342 | CO23: 656 | CP23: 2339
A24: 150806 | C24: 17 | D24: 150806 | E24: DISTRITO HUAURA | F24: 36324 | H24: 18393 | I24: 17931 | K24: 282 | L24: 275 | M24: 334 | N24: 322 | O24: 344 | P24: 272 | Q24: 300 | R24: 286 | S24: 214 | T24: 188 | U24: 222 | V24: 214 | W24: 346 | X24: 341 | Y24: 357 | Z24: 345 | AA24: 334 | AB24: 320 | AC24: 317 | AD24: 308 | AE24: 300 | AF24: 295 | AG24: 304 | AH24: 325 | AI24: 288 | AJ24: 282 | AK24: 299 | AL24: 286 | AM24: 287 | AN24: 285 | AO24: 277 | AP24: 263 | AQ24: 290 | AR24: 250 | AS24: 291 | AT24: 293 | AU24: 287 | AV24: 254 | AW24: 340 | AX24: 363 | AY24: 1837 | AZ24: 1712 | BA24: 1712 | BB24: 1616 | BC24: 1463 | BD24: 1487 | BE24: 1424 | BF24: 1345 | BG24: 1194 | BH24: 1234 | BI24: 1013 | BJ24: 1113 | BK24: 915 | BL24: 942 | BM24: 777 | BN24: 734 | BO24: 587 | BP24: 569 | BQ24: 477 | BR24: 451 | BS24: 358 | BT24: 332 | BU24: 274 | BV24: 265 | BW24: 349 | BX24: 364 | BY24: 733 | BZ24: 1473 | CA24: 1423 | CB24: 8507 | CC24: 859 | CE24: 557 | CF24: 2260 | CG24: 7145 | CH24: 7719 | CI24: 3391 | CJ24: 8121 | CK24: 13641 | CL24: 4026 | CN24: 3104 | CO24: 5859 | CP24: 20518
B25: 01 | C25: 18 | D25: 5682 | E25: C.S. HUAURA | F25: 16345 | H25: 8277 | I25: 8068 | K25: 127 | L25: 123 | M25: 150 | N25: 145 | O25: 155 | P25: 122 | Q25: 135 | R25: 129 | S25: 96 | T25: 85 | U25: 100 | V25: 96 | W25: 156 | X25: 153 | Y25: 161 | Z25: 155 | AA25: 151 | AB25: 143 | AC25: 143 | AD25: 138 | AE25: 135 | AF25: 133 | AG25: 137 | AH25: 146 | AI25: 130 | AJ25: 126 | AK25: 134 | AL25: 129 | AM25: 129 | AN25: 128 | AO25: 125 | AP25: 118 | AQ25: 131 | AR25: 112 | AS25: 131 | AT25: 132 | AU25: 129 | AV25: 115 | AW25: 154 | AX25: 162 | AY25: 826 | AZ25: 771 | BA25: 769 | BB25: 727 | BC25: 659 | BD25: 669 | BE25: 640 | BF25: 607 | BG25: 537 | BH25: 556 | BI25: 457 | BJ25: 500 | BK25: 412 | BL25: 423 | BM25: 347 | BN25: 332 | BO25: 263 | BP25: 257 | BQ25: 214 | BR25: 203 | BS25: 158 | BT25: 154 | BU25: 123 | BV25: 119 | BW25: 163 | BX25: 160 | BY25: 330 | BZ25: 662 | CA25: 639 | CB25: 3830 | CC25: 430 | CE25: 250 | CF25: 1017 | CG25: 3214 | CH25: 3472 | CI25: 1525 | CJ25: 3653 | CK25: 6139 | CL25: 1814 | CN25: 1396 | CO25: 2636 | CP25: 9232
B26: 01 | C26: 19 | D26: 5686 | E26: C.S. SOCORRO | F26: 13803 | H26: 6989 | I26: 6814 | K26: 107 | L26: 105 | M26: 128 | N26: 121 | O26: 131 | P26: 103 | Q26: 114 | R26: 108 | S26: 82 | T26: 71 | U26: 85 | V26: 81 | W26: 131 | X26: 130 | Y26: 136 | Z26: 131 | AA26: 127 | AB26: 122 | AC26: 120 | AD26: 118 | AE26: 114 | AF26: 111 | AG26: 116 | AH26: 123 | AI26: 109 | AJ26: 108 | AK26: 114 | AL26: 108 | AM26: 109 | AN26: 108 | AO26: 105 | AP26: 100 | AQ26: 110 | AR26: 95 | AS26: 111 | AT26: 111 | AU26: 109 | AV26: 97 | AW26: 129 | AX26: 139 | AY26: 698 | AZ26: 652 | BA26: 650 | BB26: 615 | BC26: 555 | BD26: 566 | BE26: 541 | BF26: 510 | BG26: 454 | BH26: 469 | BI26: 385 | BJ26: 423 | BK26: 347 | BL26: 358 | BM26: 296 | BN26: 278 | BO26: 224 | BP26: 215 | BQ26: 181 | BR26: 171 | BS26: 136 | BT26: 126 | BU26: 104 | BV26: 101 | BW26: 131 | BX26: 140 | BY26: 279 | BZ26: 558 | CA26: 542 | CB26: 3235 | CC26: 283 | CE26: 212 | CF26: 858 | CG26: 2715 | CH26: 2933 | CI26: 1288 | CJ26: 3089 | CK26: 5182 | CL26: 1529 | CN26: 1181 | CO26: 2226 | CP26: 7797
B27: 01 | C27: 20 | D27: 5683 | E27: P.S. HUMAYA | F27: 3633 | H27: 1839 | I27: 1794 | K27: 28 | L27: 28 | M27: 33 | N27: 33 | O27: 34 | P27: 28 | Q27: 30 | R27: 29 | S27: 21 | T27: 19 | U27: 22 | V27: 22 | W27: 35 | X27: 34 | Y27: 35 | Z27: 35 | AA27: 33 | AB27: 32 | AC27: 32 | AD27: 31 | AE27: 30 | AF27: 30 | AG27: 30 | AH27: 33 | AI27: 29 | AJ27: 28 | AK27: 30 | AL27: 29 | AM27: 29 | AN27: 28 | AO27: 27 | AP27: 27 | AQ27: 29 | AR27: 25 | AS27: 29 | AT27: 29 | AU27: 29 | AV27: 25 | AW27: 34 | AX27: 36 | AY27: 184 | AZ27: 171 | BA27: 171 | BB27: 161 | BC27: 146 | BD27: 149 | BE27: 143 | BF27: 135 | BG27: 119 | BH27: 122 | BI27: 100 | BJ27: 113 | BK27: 91 | BL27: 94 | BM27: 79 | BN27: 72 | BO27: 59 | BP27: 55 | BQ27: 48 | BR27: 45 | BS27: 37 | BT27: 32 | BU27: 27 | BV27: 27 | BW27: 36 | BX27: 37 | BY27: 73 | BZ27: 148 | CA27: 142 | CB27: 851 | CC27: 77 | CE27: 56 | CF27: 227 | CG27: 717 | CH27: 773 | CI27: 339 | CJ27: 811 | CK27: 1363 | CL27: 403 | CN27: 311 | CO27: 586 | CP27: 2050
B28: 01 | C28: 21 | D28: 5684 | E28: P.S. VILCAHUAURA | F28: 2179 | H28: 1104 | I28: 1075 | K28: 17 | L28: 16 | M28: 20 | N28: 19 | O28: 21 | P28: 16 | Q28: 18 | R28: 17 | S28: 13 | T28: 11 | U28: 13 | V28: 13 | W28: 21 | X28: 20 | Y28: 21 | Z28: 21 | AA28: 20 | AB28: 19 | AC28: 19 | AD28: 18 | AE28: 18 | AF28: 18 | AG28: 18 | AH28: 20 | AI28: 17 | AJ28: 17 | AK28: 18 | AL28: 17 | AM28: 17 | AN28: 18 | AO28: 17 | AP28: 16 | AQ28: 17 | AR28: 16 | AS28: 17 | AT28: 18 | AU28: 17 | AV28: 15 | AW28: 20 | AX28: 22 | AY28: 110 | AZ28: 102 | BA28: 104 | BB28: 96 | BC28: 88 | BD28: 88 | BE28: 85 | BF28: 81 | BG28: 73 | BH28: 74 | BI28: 61 | BJ28: 66 | BK28: 55 | BL28: 58 | BM28: 47 | BN28: 45 | BO28: 36 | BP28: 35 | BQ28: 29 | BR28: 27 | BS28: 22 | BT28: 19 | BU28: 16 | BV28: 16 | BW28: 19 | BX28: 21 | BY28: 44 | BZ28: 90 | CA28: 87 | CB28: 507 | CC28: 60 | CE28: 33 | CF28: 135 | CG28: 427 | CH28: 464 | CI28: 205 | CJ28: 486 | CK28: 821 | CL28: 240 | CN28: 185 | CO28: 353 | CP28: 1233
B29: 01 | C29: 22 | D29: 5685 | E29: P.S. PEÑICO | F29: 364 | H29: 184 | I29: 180 | K29: 3 | L29: 3 | M29: 3 | N29: 4 | O29: 3 | P29: 3 | Q29: 3 | R29: 3 | S29: 2 | T29: 2 | U29: 2 | V29: 2 | W29: 3 | X29: 4 | Y29: 4 | Z29: 3 | AA29: 3 | AB29: 4 | AC29: 3 | AD29: 3 | AE29: 3 | AF29: 3 | AG29: 3 | AH29: 3 | AI29: 3 | AJ29: 3 | AK29: 3 | AL29: 3 | AM29: 3 | AN29: 3 | AO29: 3 | AP29: 2 | AQ29: 3 | AR29: 2 | AS29: 3 | AT29: 3 | AU29: 3 | AV29: 2 | AW29: 3 | AX29: 4 | AY29: 19 | AZ29: 16 | BA29: 18 | BB29: 17 | BC29: 15 | BD29: 15 | BE29: 15 | BF29: 12 | BG29: 11 | BH29: 13 | BI29: 10 | BJ29: 11 | BK29: 10 | BL29: 9 | BM29: 8 | BN29: 7 | BO29: 5 | BP29: 7 | BQ29: 5 | BR29: 5 | BS29: 5 | BT29: 1 | BU29: 4 | BV29: 2 | BW29: 0 | BX29: 6 | BY29: 7 | BZ29: 15 | CA29: 13 | CB29: 84 | CC29: 9 | CE29: 6 | CF29: 23 | CG29: 72 | CH29: 77 | CI29: 34 | CJ29: 82 | CK29: 136 | CL29: 40 | CN29: 31 | CO29: 58 | CP29: 206
A30: 150807 | C30: 23 | D30: 150807 | E30: DISTRITO LEONCIO PRADO | F30: 2397 | H30: 1320 | I30: 1077 | K30: 2 | L30: 7 | M30: 7 | N30: 14 | O30: 13 | P30: 13 | Q30: 16 | R30: 17 | S30: 19 | T30: 20 | U30: 18 | V30: 11 | W30: 22 | X30: 19 | Y30: 19 | Z30: 21 | AA30: 24 | AB30: 19 | AC30: 16 | AD30: 20 | AE30: 28 | AF30: 18 | AG30: 22 | AH30: 23 | AI30: 18 | AJ30: 16 | AK30: 27 | AL30: 18 | AM30: 29 | AN30: 23 | AO30: 29 | AP30: 16 | AQ30: 19 | AR30: 25 | AS30: 21 | AT30: 19 | AU30: 34 | AV30: 21 | AW30: 30 | AX30: 26 | AY30: 82 | AZ30: 87 | BA30: 121 | BB30: 77 | BC30: 106 | BD30: 96 | BE30: 98 | BF30: 62 | BG30: 90 | BH30: 66 | BI30: 76 | BJ30: 60 | BK30: 67 | BL30: 42 | BM30: 69 | BN30: 49 | BO30: 69 | BP30: 56 | BQ30: 39 | BR30: 29 | BS30: 28 | BT30: 27 | BU30: 19 | BV30: 23 | BW30: 43 | BX30: 37 | BY30: 46 | BZ30: 98 | CA30: 107 | CB30: 448 | CC30: 47 | CE30: 9 | CF30: 119 | CG30: 408 | CH30: 540 | CI30: 260 | CJ30: 478 | CK30: 881 | CL30: 370 | CN30: 189 | CO30: 462 | CP30: 1248
B31: 03 | C31: 24 | D31: 5778 | E31: P.S. AUQUIMARCA | F31: 120 | H31: 66 | I31: 54 | K31: 0 | L31: 0 | M31: 0 | N31: 1 | O31: 1 | P31: 0 | Q31: 1 | R31: 1 | S31: 1 | T31: 1 | U31: 1 | V31: 0 | W31: 1 | X31: 1 | Y31: 1 | Z31: 1 | AA31: 1 | AB31: 1 | AC31: 1 | AD31: 1 | AE31: 1 | AF31: 1 | AG31: 1 | AH31: 1 | AI31: 1 | AJ31: 1 | AK31: 1 | AL31: 1 | AM31: 1 | AN31: 2 | AO31: 1 | AP31: 1 | AQ31: 1 | AR31: 1 | AS31: 1 | AT31: 1 | AU31: 2 | AV31: 0 | AW31: 2 | AX31: 0 | AY31: 5 | AZ31: 5 | BA31: 6 | BB31: 5 | BC31: 5 | BD31: 5 | BE31: 5 | BF31: 4 | BG31: 5 | BH31: 4 | BI31: 5 | BJ31: 2 | BK31: 5 | BL31: 0 | BM31: 3 | BN31: 2 | BO31: 5 | BP31: 1 | BQ31: 2 | BR31: 2 | BS31: 0 | BT31: 4 | BU31: 0 | BV31: 2 | BW31: 0 | BX31: 2 | BY31: 3 | BZ31: 6 | CA31: 3 | CB31: 25 | CC31: 2 | CE31: 0 | CF31: 6 | CG31: 19 | CH31: 26 | CI31: 13 | CJ31: 25 | CK31: 45 | CL31: 18 | CN31: 9 | CO31: 21 | CP31: 66
B32: 03 | C32: 25 | D32: 5779 | E32: P.S. PARAN | F32: 1199 | H32: 660 | I32: 539 | K32: 1 | L32: 4 | M32: 4 | N32: 7 | O32: 6 | P32: 7 | Q32: 8 | R32: 8 | S32: 9 | T32: 10 | U32: 8 | V32: 7 | W32: 10 | X32: 11 | Y32: 9 | Z32: 11 | AA32: 11 | AB32: 10 | AC32: 8 | AD32: 10 | AE32: 13 | AF32: 10 | AG32: 11 | AH32: 12 | AI32: 8 | AJ32: 8 | AK32: 13 | AL32: 10 | AM32: 14 | AN32: 12 | AO32: 14 | AP32: 9 | AQ32: 9 | AR32: 13 | AS32: 11 | AT32: 9 | AU32: 15 | AV32: 12 | AW32: 14 | AX32: 14 | AY32: 43 | AZ32: 39 | BA32: 62 | BB32: 34 | BC32: 55 | BD32: 46 | BE32: 50 | BF32: 27 | BG32: 46 | BH32: 30 | BI32: 39 | BJ32: 29 | BK32: 34 | BL32: 22 | BM32: 34 | BN32: 26 | BO32: 33 | BP32: 31 | BQ32: 18 | BR32: 18 | BS32: 14 | BT32: 14 | BU32: 11 | BV32: 10 | BW32: 25 | BX32: 19 | BY32: 21 | BZ32: 52 | CA32: 57 | CB32: 205 | CC32: 17 | CE32: 5 | CF32: 59 | CG32: 205 | CH32: 271 | CI32: 130 | CJ32: 233 | CK32: 438 | CL32: 193 | CN32: 95 | CO32: 231 | CP32: 616
B33: 03 | C33: 26 | D33: 6725 | E33: P.S. SANTA CRUZ | F33: 479 | H33: 264 | I33: 215 | K33: 0 | L33: 2 | M33: 1 | N33: 3 | O33: 3 | P33: 2 | Q33: 3 | R33: 4 | S33: 4 | T33: 4 | U33: 4 | V33: 2 | W33: 5 | X33: 3 | Y33: 4 | Z33: 4 | AA33: 6 | AB33: 3 | AC33: 3 | AD33: 4 | AE33: 7 | AF33: 2 | AG33: 4 | AH33: 5 | AI33: 4 | AJ33: 3 | AK33: 6 | AL33: 3 | AM33: 7 | AN33: 3 | AO33: 7 | AP33: 2 | AQ33: 4 | AR33: 5 | AS33: 4 | AT33: 4 | AU33: 8 | AV33: 4 | AW33: 7 | AX33: 5 | AY33: 16 | AZ33: 18 | BA33: 24 | BB33: 15 | BC33: 21 | BD33: 19 | BE33: 19 | BF33: 14 | BG33: 18 | BH33: 13 | BI33: 15 | BJ33: 12 | BK33: 13 | BL33: 8 | BM33: 14 | BN33: 10 | BO33: 13 | BP33: 12 | BQ33: 7 | BR33: 7 | BS33: 6 | BT33: 4 | BU33: 2 | BV33: 6 | BW33: 5 | BX33: 10 | BY33: 9 | BZ33: 16 | CA33: 20 | CB33: 91 | CC33: 9 | CE33: 2 | CF33: 24 | CG33: 82 | CH33: 108 | CI33: 52 | CJ33: 97 | CK33: 176 | CL33: 72 | CN33: 38 | CO33: 94 | CP33: 249
B34: 03 | C34: 27 | D34: 7757 | E34: P.S. HUANANGUI | F34: 599 | H34: 330 | I34: 269 | K34: 1 | L34: 1 | M34: 2 | N34: 3 | O34: 3 | P34: 4 | Q34: 4 | R34: 4 | S34: 5 | T34: 5 | U34: 5 | V34: 2 | W34: 6 | X34: 4 | Y34: 5 | Z34: 5 | AA34: 6 | AB34: 5 | AC34: 4 | AD34: 5 | AE34: 7 | AF34: 5 | AG34: 6 | AH34: 5 | AI34: 5 | AJ34: 4 | AK34: 7 | AL34: 4 | AM34: 7 | AN34: 6 | AO34: 7 | AP34: 4 | AQ34: 5 | AR34: 6 | AS34: 5 | AT34: 5 | AU34: 9 | AV34: 5 | AW34: 7 | AX34: 7 | AY34: 18 | AZ34: 25 | BA34: 29 | BB34: 23 | BC34: 25 | BD34: 26 | BE34: 24 | BF34: 17 | BG34: 21 | BH34: 19 | BI34: 17 | BJ34: 17 | BK34: 15 | BL34: 12 | BM34: 18 | BN34: 11 | BO34: 18 | BP34: 12 | BQ34: 12 | BR34: 2 | BS34: 8 | BT34: 5 | BU34: 6 | BV34: 5 | BW34: 13 | BX34: 6 | BY34: 13 | BZ34: 24 | CA34: 27 | CB34: 127 | CC34: 19 | CE34: 2 | CF34: 30 | CG34: 102 | CH34: 135 | CI34: 65 | CJ34: 123 | CK34: 222 | CL34: 87 | CN34: 47 | CO34: 116 | CP34: 317
A35: 150808 | C35: 28 | D35: 150808 | E35: DISTRITO PACCHO | F35: 1621 | H35: 826 | I35: 795 | K35: 4 | L35: 5 | M35: 11 | N35: 10 | O35: 17 | P35: 9 | Q35: 11 | R35: 12 | S35: 7 | T35: 16 | U35: 11 | V35: 10 | W35: 10 | X35: 8 | Y35: 12 | Z35: 10 | AA35: 8 | AB35: 11 | AC35: 13 | AD35: 13 | AE35: 19 | AF35: 12 | AG35: 9 | AH35: 7 | AI35: 12 | AJ35: 12 | AK35: 16 | AL35: 15 | AM35: 15 | AN35: 10 | AO35: 7 | AP35: 12 | AQ35: 15 | AR35: 17 | AS35: 11 | AT35: 10 | AU35: 9 | AV35: 10 | AW35: 14 | AX35: 15 | AY35: 41 | AZ35: 45 | BA35: 40 | BB35: 38 | BC35: 44 | BD35: 31 | BE35: 34 | BF35: 37 | BG35: 53 | BH35: 45 | BI35: 54 | BJ35: 65 | BK35: 61 | BL35: 48 | BM35: 45 | BN35: 41 | BO35: 44 | BP35: 39 | BQ35: 37 | BR35: 41 | BS35: 55 | BT35: 41 | BU35: 41 | BV35: 40 | BW35: 46 | BX35: 60 | BY35: 27 | BZ35: 56 | CA35: 64 | CB35: 261 | CC35: 47 | CE35: 9 | CF35: 93 | CG35: 255 | CH35: 305 | CI35: 152 | CJ35: 212 | CK35: 558 | CL35: 444 | CN35: 106 | CO35: 247 | CP35: 722
B36: 05 | C36: 29 | D36: 5650 | E36: P.S. PACCHO | F36: 649 | H36: 330 | I36: 319 | K36: 2 | L36: 2 | M36: 4 | N36: 5 | O36: 6 | P36: 4 | Q36: 4 | R36: 6 | S36: 3 | T36: 7 | U36: 4 | V36: 5 | W36: 4 | X36: 3 | Y36: 4 | Z36: 5 | AA36: 3 | AB36: 5 | AC36: 5 | AD36: 5 | AE36: 6 | AF36: 6 | AG36: 4 | AH36: 3 | AI36: 4 | AJ36: 5 | AK36: 6 | AL36: 6 | AM36: 6 | AN36: 4 | AO36: 3 | AP36: 4 | AQ36: 6 | AR36: 6 | AS36: 4 | AT36: 5 | AU36: 4 | AV36: 3 | AW36: 4 | AX36: 8 | AY36: 18 | AZ36: 17 | BA36: 15 | BB36: 17 | BC36: 18 | BD36: 13 | BE36: 16 | BF36: 9 | BG36: 22 | BH36: 17 | BI36: 21 | BJ36: 24 | BK36: 22 | BL36: 23 | BM36: 17 | BN36: 17 | BO36: 17 | BP36: 17 | BQ36: 17 | BR36: 13 | BS36: 20 | BT36: 17 | BU36: 18 | BV36: 13 | BW36: 23 | BX36: 25 | BY36: 10 | BZ36: 24 | CA36: 26 | CB36: 97 | CC36: 19 | CE36: 4 | CF36: 39 | CG36: 105 | CH36: 121 | CI36: 59 | CJ36: 86 | CK36: 219 | CL36: 180 | CN36: 43 | CO36: 97 | CP36: 286
B37: 05 | C37: 30 | D37: 5651 | E37: P.S. LACSANGA | F37: 486 | H37: 248 | I37: 238 | K37: 2 | L37: 1 | M37: 3 | N37: 3 | O37: 5 | P37: 3 | Q37: 3 | R37: 4 | S37: 2 | T37: 5 | U37: 3 | V37: 3 | W37: 2 | X37: 3 | Y37: 4 | Z37: 3 | AA37: 3 | AB37: 2 | AC37: 4 | AD37: 4 | AE37: 5 | AF37: 4 | AG37: 3 | AH37: 2 | AI37: 4 | AJ37: 3 | AK37: 4 | AL37: 5 | AM37: 5 | AN37: 2 | AO37: 2 | AP37: 4 | AQ37: 5 | AR37: 5 | AS37: 3 | AT37: 3 | AU37: 3 | AV37: 3 | AW37: 4 | AX37: 5 | AY37: 13 | AZ37: 12 | BA37: 13 | BB37: 11 | BC37: 14 | BD37: 8 | BE37: 10 | BF37: 12 | BG37: 15 | BH37: 14 | BI37: 17 | BJ37: 19 | BK37: 15 | BL37: 17 | BM37: 14 | BN37: 12 | BO37: 15 | BP37: 10 | BQ37: 10 | BR37: 14 | BS37: 15 | BT37: 14 | BU37: 13 | BV37: 11 | BW37: 15 | BX37: 17 | BY37: 9 | BZ37: 16 | CA37: 20 | CB37: 76 | CC37: 14 | CE37: 3 | CF37: 28 | CG37: 76 | CH37: 90 | CI37: 45 | CJ37: 64 | CK37: 167 | CL37: 134 | CN37: 31 | CO37: 74 | CP37: 216
B38: 05 | C38: 31 | D38: 5653 | E38: P.S. AYARANGA | F38: 243 | H38: 124 | I38: 119 | K38: 0 | L38: 1 | M38: 2 | N38: 1 | O38: 3 | P38: 1 | Q38: 2 | R38: 1 | S38: 1 | T38: 2 | U38: 2 | V38: 1 | W38: 2 | X38: 1 | Y38: 2 | Z38: 1 | AA38: 1 | AB38: 2 | AC38: 2 | AD38: 2 | AE38: 4 | AF38: 1 | AG38: 1 | AH38: 1 | AI38: 2 | AJ38: 2 | AK38: 3 | AL38: 2 | AM38: 2 | AN38: 2 | AO38: 1 | AP38: 2 | AQ38: 2 | AR38: 3 | AS38: 2 | AT38: 1 | AU38: 1 | AV38: 2 | AW38: 3 | AX38: 1 | AY38: 5 | AZ38: 8 | BA38: 6 | BB38: 5 | BC38: 6 | BD38: 5 | BE38: 4 | BF38: 8 | BG38: 8 | BH38: 7 | BI38: 8 | BJ38: 11 | BK38: 12 | BL38: 4 | BM38: 7 | BN38: 6 | BO38: 6 | BP38: 6 | BQ38: 5 | BR38: 7 | BS38: 10 | BT38: 5 | BU38: 5 | BV38: 8 | BW38: 4 | BX38: 9 | BY38: 4 | BZ38: 8 | CA38: 9 | CB38: 44 | CC38: 7 | CE38: 1 | CF38: 13 | CG38: 37 | CH38: 47 | CI38: 24 | CJ38: 31 | CK38: 86 | CL38: 65 | CN38: 16 | CO38: 38 | CP38: 110
B39: 05 | C39: 32 | D39: 5652 | E39: P.S. MUZGA | F39: 243 | H39: 124 | I39: 119 | K39: 0 | L39: 1 | M39: 2 | N39: 1 | O39: 3 | P39: 1 | Q39: 2 | R39: 1 | S39: 1 | T39: 2 | U39: 2 | V39: 1 | W39: 2 | X39: 1 | Y39: 2 | Z39: 1 | AA39: 1 | AB39: 2 | AC39: 2 | AD39: 2 | AE39: 4 | AF39: 1 | AG39: 1 | AH39: 1 | AI39: 2 | AJ39: 2 | AK39: 3 | AL39: 2 | AM39: 2 | AN39: 2 | AO39: 1 | AP39: 2 | AQ39: 2 | AR39: 3 | AS39: 2 | AT39: 1 | AU39: 1 | AV39: 2 | AW39: 3 | AX39: 1 | AY39: 5 | AZ39: 8 | BA39: 6 | BB39: 5 | BC39: 6 | BD39: 5 | BE39: 4 | BF39: 8 | BG39: 8 | BH39: 7 | BI39: 8 | BJ39: 11 | BK39: 12 | BL39: 4 | BM39: 7 | BN39: 6 | BO39: 6 | BP39: 6 | BQ39: 5 | BR39: 7 | BS39: 10 | BT39: 5 | BU39: 5 | BV39: 8 | BW39: 4 | BX39: 9 | BY39: 4 | BZ39: 8 | CA39: 9 | CB39: 44 | CC39: 7 | CE39: 1 | CF39: 13 | CG39: 37 | CH39: 47 | CI39: 24 | CJ39: 31 | CK39: 86 | CL39: 65 | CN39: 16 | CO39: 38 | CP39: 110
A40: 150809 | C40: 33 | D40: 150809 | E40: DISTRITO SANTA LEONOR | F40: 1323 | H40: 712 | I40: 611 | K40: 4 | L40: 1 | M40: 4 | N40: 8 | O40: 14 | P40: 6 | Q40: 12 | R40: 8 | S40: 9 | T40: 4 | U40: 17 | V40: 10 | W40: 7 | X40: 7 | Y40: 9 | Z40: 12 | AA40: 10 | AB40: 7 | AC40: 9 | AD40: 12 | AE40: 14 | AF40: 6 | AG40: 11 | AH40: 10 | AI40: 13 | AJ40: 4 | AK40: 14 | AL40: 11 | AM40: 10 | AN40: 11 | AO40: 11 | AP40: 8 | AQ40: 8 | AR40: 4 | AS40: 9 | AT40: 8 | AU40: 8 | AV40: 8 | AW40: 16 | AX40: 11 | AY40: 58 | AZ40: 46 | BA40: 53 | BB40: 51 | BC40: 49 | BD40: 34 | BE40: 42 | BF40: 43 | BG40: 41 | BH40: 37 | BI40: 41 | BJ40: 30 | BK40: 37 | BL40: 29 | BM40: 45 | BN40: 44 | BO40: 41 | BP40: 31 | BQ40: 31 | BR40: 19 | BS40: 25 | BT40: 31 | BU40: 17 | BV40: 24 | BW40: 23 | BX40: 36 | BY40: 28 | BZ40: 42 | CA40: 39 | CB40: 241 | CC40: 36 | CE40: 5 | CF40: 65 | CG40: 211 | CH40: 252 | CI40: 111 | CJ40: 251 | CK40: 472 | CL40: 278 | CN40: =SUM(U40:AD40) -> 100 | CO40: =SUM(AE40:AX40) -> 195 | CP40: =SUM(AY40:BN40) -> 680
B41: 05 | C41: 34 | D41: 5645 | E41: P.S. CHIUCHIN | F41: 821 | H41: 442 | I41: 379 | K41: 3 | L41: 0 | M41: 3 | N41: 5 | O41: 9 | P41: 3 | Q41: 8 | R41: 4 | S41: 6 | T41: 2 | U41: 11 | V41: 6 | W41: 4 | X41: 5 | Y41: 6 | Z41: 7 | AA41: 6 | AB41: 5 | AC41: 6 | AD41: 7 | AE41: 9 | AF41: 3 | AG41: 7 | AH41: 6 | AI41: 8 | AJ41: 3 | AK41: 9 | AL41: 7 | AM41: 6 | AN41: 7 | AO41: 7 | AP41: 5 | AQ41: 5 | AR41: 3 | AS41: 5 | AT41: 5 | AU41: 5 | AV41: 5 | AW41: 10 | AX41: 6 | AY41: 37 | AZ41: 27 | BA41: 33 | BB41: 31 | BC41: 30 | BD41: 21 | BE41: 24 | BF41: 28 | BG41: 24 | BH41: 25 | BI41: 25 | BJ41: 19 | BK41: 21 | BL41: 20 | BM41: 28 | BN41: 27 | BO41: 24 | BP41: 20 | BQ41: 20 | BR41: 11 | BS41: 15 | BT41: 20 | BU41: 11 | BV41: 15 | BW41: 17 | BX41: 21 | BY41: 17 | BZ41: 26 | CA41: 24 | CB41: 151 | CC41: 26 | CE41: 3 | CF41: 40 | CG41: 131 | CH41: 158 | CI41: 70 | CJ41: 154 | CK41: 292 | CL41: 174 | CN41: 63 | CO41: 121 | CP41: 420
B42: 05 | C42: 35 | D42: 5646 | E42: P.S. PARQUIN | F42: 370 | H42: 199 | I42: 171 | K42: 1 | L42: 0 | M42: 1 | N42: 2 | O42: 4 | P42: 2 | Q42: 3 | R42: 3 | S42: 2 | T42: 2 | U42: 4 | V42: 3 | W42: 2 | X42: 2 | Y42: 2 | Z42: 4 | AA42: 3 | AB42: 1 | AC42: 2 | AD42: 4 | AE42: 4 | AF42: 2 | AG42: 3 | AH42: 3 | AI42: 4 | AJ42: 1 | AK42: 4 | AL42: 3 | AM42: 3 | AN42: 3 | AO42: 3 | AP42: 2 | AQ42: 2 | AR42: 1 | AS42: 3 | AT42: 2 | AU42: 2 | AV42: 2 | AW42: 4 | AX42: 4 | AY42: 15 | AZ42: 15 | BA42: 15 | BB42: 14 | BC42: 14 | BD42: 8 | BE42: 13 | BF42: 10 | BG42: 12 | BH42: 9 | BI42: 11 | BJ42: 10 | BK42: 11 | BL42: 9 | BM42: 12 | BN42: 13 | BO42: 12 | BP42: 8 | BQ42: 9 | BR42: 5 | BS42: 8 | BT42: 8 | BU42: 5 | BV42: 7 | BW42: 6 | BX42: 9 | BY42: 8 | BZ42: 12 | CA42: 11 | CB42: 66 | CC42: 6 | CE42: 1 | CF42: 19 | CG42: 59 | CH42: 70 | CI42: 31 | CJ42: 71 | CK42: 132 | CL42: 77 | CN42: 27 | CO42: 55 | CP42: 191
B43: 05 | C43: 36 | D43: 5647 | E43: P.S. JUCUL | F43: 132 | H43: 71 | I43: 61 | K43: 0 | L43: 1 | M43: 0 | N43: 1 | O43: 1 | P43: 1 | Q43: 1 | R43: 1 | S43: 1 | T43: 0 | U43: 2 | V43: 1 | W43: 1 | X43: 0 | Y43: 1 | Z43: 1 | AA43: 1 | AB43: 1 | AC43: 1 | AD43: 1 | AE43: 1 | AF43: 1 | AG43: 1 | AH43: 1 | AI43: 1 | AJ43: 0 | AK43: 1 | AL43: 1 | AM43: 1 | AN43: 1 | AO43: 1 | AP43: 1 | AQ43: 1 | AR43: 0 | AS43: 1 | AT43: 1 | AU43: 1 | AV43: 1 | AW43: 2 | AX43: 1 | AY43: 6 | AZ43: 4 | BA43: 5 | BB43: 6 | BC43: 5 | BD43: 5 | BE43: 5 | BF43: 5 | BG43: 5 | BH43: 3 | BI43: 5 | BJ43: 1 | BK43: 5 | BL43: 0 | BM43: 5 | BN43: 4 | BO43: 5 | BP43: 3 | BQ43: 2 | BR43: 3 | BS43: 2 | BT43: 3 | BU43: 1 | BV43: 2 | BW43: 0 | BX43: 6 | BY43: 3 | BZ43: 4 | CA43: 4 | CB43: 24 | CC43: 4 | CE43: 1 | CF43: 6 | CG43: 21 | CH43: 24 | CI43: 10 | CJ43: 26 | CK43: 48 | CL43: 27 | CN43: 10 | CO43: 19 | CP43: 69
A44: 150810 | C44: 37 | D44: 150810 | E44: DISTRITO SANTA MARIA | F44: 35208 | H44: 17755 | I44: 17453 | K44: 205 | L44: 205 | M44: 215 | N44: 205 | O44: 185 | P44: 194 | Q44: 231 | R44: 259 | S44: 226 | T44: 213 | U44: 199 | V44: 192 | W44: 358 | X44: 321 | Y44: 377 | Z44: 329 | AA44: 314 | AB44: 317 | AC44: 332 | AD44: 281 | AE44: 295 | AF44: 313 | AG44: 305 | AH44: 249 | AI44: 315 | AJ44: 306 | AK44: 257 | AL44: 278 | AM44: 287 | AN44: 281 | AO44: 272 | AP44: 222 | AQ44: 300 | AR44: 264 | AS44: 322 | AT44: 299 | AU44: 319 | AV44: 305 | AW44: 381 | AX44: 323 | AY44: 1725 | AZ44: 1687 | BA44: 1470 | BB44: 1526 | BC44: 1431 | BD44: 1422 | BE44: 1243 | BF44: 1240 | BG44: 1146 | BH44: 1217 | BI44: 1033 | BJ44: 1019 | BK44: 852 | BL44: 864 | BM44: 721 | BN44: 752 | BO44: 628 | BP44: 631 | BQ44: 577 | BR44: 578 | BS44: 453 | BT44: 455 | BU44: 313 | BV44: 288 | BW44: 468 | BX44: 418 | BY44: 717 | BZ44: 1427 | CA44: 1413 | CB44: 8111 | CC44: 783 | CE44: 410 | CF44: 1728 | CG44: 6320 | CH44: 7585 | CI44: 3403 | CJ44: 7736 | CK44: 12940 | CL44: 4809 | CN44: 3020 | CO44: 5893 | CP44: 19348
B45: 02 | C45: 38 | D45: 5668 | E45: C.S. SANTA MARIA | F45: 9858 | H45: 4971 | I45: 4887 | K45: 57 | L45: 58 | M45: 60 | N45: 58 | O45: 52 | P45: 54 | Q45: 65 | R45: 72 | S45: 63 | T45: 60 | U45: 56 | V45: 53 | W45: 100 | X45: 90 | Y45: 104 | Z45: 94 | AA45: 88 | AB45: 89 | AC45: 93 | AD45: 79 | AE45: 83 | AF45: 87 | AG45: 85 | AH45: 70 | AI45: 88 | AJ45: 86 | AK45: 72 | AL45: 78 | AM45: 80 | AN45: 79 | AO45: 76 | AP45: 62 | AQ45: 84 | AR45: 74 | AS45: 90 | AT45: 84 | AU45: 89 | AV45: 86 | AW45: 107 | AX45: 90 | AY45: 482 | AZ45: 474 | BA45: 411 | BB45: 427 | BC45: 401 | BD45: 397 | BE45: 347 | BF45: 348 | BG45: 320 | BH45: 342 | BI45: 290 | BJ45: 285 | BK45: 239 | BL45: 242 | BM45: 203 | BN45: 210 | BO45: 176 | BP45: 177 | BQ45: 162 | BR45: 163 | BS45: 126 | BT45: 127 | BU45: 88 | BV45: 80 | BW45: 134 | BX45: 112 | BY45: 201 | BZ45: 400 | CA45: 396 | CB45: 2273 | CC45: 219 | CE45: 115 | CF45: 484 | CG45: 1770 | CH45: 2124 | CI45: 953 | CJ45: 2166 | CK45: 3624 | CL45: 1345 | CN45: 846 | CO45: 1650 | CP45: 5418
B46: 02 | C46: 39 | D46: 5669 | E46: P.S. CHONTA | F46: 5281 | H46: 2663 | I46: 2618 | K46: 31 | L46: 30 | M46: 33 | N46: 30 | O46: 28 | P46: 29 | Q46: 35 | R46: 39 | S46: 35 | T46: 31 | U46: 30 | V46: 29 | W46: 53 | X46: 49 | Y46: 58 | Z46: 48 | AA46: 47 | AB46: 48 | AC46: 50 | AD46: 42 | AE46: 43 | AF46: 48 | AG46: 46 | AH46: 37 | AI46: 47 | AJ46: 46 | AK46: 38 | AL46: 42 | AM46: 44 | AN46: 41 | AO46: 41 | AP46: 33 | AQ46: 45 | AR46: 40 | AS46: 48 | AT46: 45 | AU46: 48 | AV46: 46 | AW46: 57 | AX46: 50 | AY46: 259 | AZ46: 250 | BA46: 221 | BB46: 228 | BC46: 216 | BD46: 213 | BE46: 187 | BF46: 185 | BG46: 172 | BH46: 182 | BI46: 154 | BJ46: 155 | BK46: 126 | BL46: 131 | BM46: 108 | BN46: 112 | BO46: 95 | BP46: 94 | BQ46: 85 | BR46: 86 | BS46: 69 | BT46: 68 | BU46: 49 | BV46: 42 | BW46: 65 | BX46: 69 | BY46: 107 | BZ46: 214 | CA46: 214 | CB46: 1213 | CC46: 117 | CE46: 61 | CF46: 260 | CG46: 949 | CH46: 1138 | CI46: 510 | CJ46: 1159 | CK46: 1941 | CL46: 722 | CN46: 454 | CO46: 885 | CP46: 2899
B47: 02 | C47: 40 | D47: 5671 | E47: P.S. ZAPATA | F47: 2817 | H47: 1420 | I47: 1397 | K47: 16 | L47: 17 | M47: 17 | N47: 16 | O47: 15 | P47: 15 | Q47: 17 | R47: 22 | S47: 18 | T47: 17 | U47: 15 | V47: 17 | W47: 30 | X47: 24 | Y47: 31 | Z47: 25 | AA47: 25 | AB47: 24 | AC47: 27 | AD47: 21 | AE47: 24 | AF47: 25 | AG47: 24 | AH47: 21 | AI47: 25 | AJ47: 25 | AK47: 21 | AL47: 22 | AM47: 23 | AN47: 23 | AO47: 22 | AP47: 18 | AQ47: 24 | AR47: 21 | AS47: 26 | AT47: 24 | AU47: 26 | AV47: 24 | AW47: 30 | AX47: 25 | AY47: 138 | AZ47: 136 | BA47: 117 | BB47: 124 | BC47: 114 | BD47: 115 | BE47: 99 | BF47: 100 | BG47: 91 | BH47: 97 | BI47: 82 | BJ47: 82 | BK47: 69 | BL47: 69 | BM47: 58 | BN47: 59 | BO47: 50 | BP47: 51 | BQ47: 47 | BR47: 44 | BS47: 37 | BT47: 36 | BU47: 25 | BV47: 23 | BW47: 37 | BX47: 35 | BY47: 58 | BZ47: 116 | CA47: 112 | CB47: 654 | CC47: 63 | CE47: 33 | CF47: 137 | CG47: 503 | CH47: 607 | CI47: 274 | CJ47: 620 | CK47: 1035 | CL47: 385 | CN47: 239 | CO47: 473 | CP47: 1550
B48: 02 | C48: 41 | D48: 5670 | E48: P.S. AMADO VELASQUEZ | F48: 9858 | H48: 4971 | I48: 4887 | K48: 57 | L48: 58 | M48: 60 | N48: 58 | O48: 52 | P48: 54 | Q48: 65 | R48: 72 | S48: 63 | T48: 60 | U48: 56 | V48: 53 | W48: 100 | X48: 90 | Y48: 104 | Z48: 94 | AA48: 88 | AB48: 89 | AC48: 93 | AD48: 79 | AE48: 83 | AF48: 87 | AG48: 85 | AH48: 70 | AI48: 88 | AJ48: 86 | AK48: 72 | AL48: 78 | AM48: 80 | AN48: 79 | AO48: 76 | AP48: 62 | AQ48: 84 | AR48: 74 | AS48: 90 | AT48: 84 | AU48: 89 | AV48: 86 | AW48: 107 | AX48: 90 | AY48: 482 | AZ48: 474 | BA48: 411 | BB48: 427 | BC48: 401 | BD48: 397 | BE48: 347 | BF48: 348 | BG48: 320 | BH48: 342 | BI48: 290 | BJ48: 285 | BK48: 239 | BL48: 242 | BM48: 203 | BN48: 210 | BO48: 176 | BP48: 177 | BQ48: 162 | BR48: 163 | BS48: 126 | BT48: 127 | BU48: 88 | BV48: 80 | BW48: 134 | BX48: 112 | BY48: 201 | BZ48: 400 | CA48: 396 | CB48: 2273 | CC48: 235 | CE48: 115 | CF48: 484 | CG48: 1770 | CH48: 2124 | CI48: 953 | CJ48: 2166 | CK48: 3624 | CL48: 1345 | CN48: 846 | CO48: 1650 | CP48: 5418
B49: 02 | C49: 42 | D49: 5672 | E49: P.S. SAN BARTOLOME | F49: 7394 | H49: 3730 | I49: 3664 | K49: 44 | L49: 42 | M49: 45 | N49: 43 | O49: 38 | P49: 42 | Q49: 49 | R49: 54 | S49: 47 | T49: 45 | U49: 42 | V49: 40 | W49: 75 | X49: 68 | Y49: 80 | Z49: 68 | AA49: 66 | AB49: 67 | AC49: 69 | AD49: 60 | AE49: 62 | AF49: 66 | AG49: 65 | AH49: 51 | AI49: 67 | AJ49: 63 | AK49: 54 | AL49: 58 | AM49: 60 | AN49: 59 | AO49: 57 | AP49: 47 | AQ49: 63 | AR49: 55 | AS49: 68 | AT49: 62 | AU49: 67 | AV49: 63 | AW49: 80 | AX49: 68 | AY49: 364 | AZ49: 353 | BA49: 310 | BB49: 320 | BC49: 299 | BD49: 300 | BE49: 263 | BF49: 259 | BG49: 243 | BH49: 254 | BI49: 217 | BJ49: 212 | BK49: 179 | BL49: 180 | BM49: 149 | BN49: 161 | BO49: 131 | BP49: 132 | BQ49: 121 | BR49: 122 | BS49: 95 | BT49: 97 | BU49: 63 | BV49: 63 | BW49: 98 | BX49: 90 | BY49: 150 | BZ49: 297 | CA49: 295 | CB49: 1698 | CC49: 149 | CE49: 86 | CF49: 363 | CG49: 1328 | CH49: 1592 | CI49: 713 | CJ49: 1625 | CK49: 2716 | CL49: 1012 | CN49: 635 | CO49: 1235 | CP49: 4063
A50: 150811 | C50: 43 | D50: 150811 | E50: DISTRITO SAYAN | F50: 24187 | H50: 12359 | I50: 11828 | K50: 204 | L50: 190 | M50: 215 | N50: 222 | O50: 219 | P50: 275 | Q50: 224 | R50: 222 | S50: 225 | T50: 217 | U50: 234 | V50: 172 | W50: 214 | X50: 216 | Y50: 238 | Z50: 218 | AA50: 217 | AB50: 221 | AC50: 229 | AD50: 198 | AE50: 216 | AF50: 255 | AG50: 221 | AH50: 217 | AI50: 209 | AJ50: 193 | AK50: 213 | AL50: 215 | AM50: 205 | AN50: 206 | AO50: 176 | AP50: 180 | AQ50: 179 | AR50: 180 | AS50: 198 | AT50: 245 | AU50: 210 | AV50: 224 | AW50: 225 | AX50: 199 | AY50: 1196 | AZ50: 1126 | BA50: 1010 | BB50: 1033 | BC50: 1002 | BD50: 926 | BE50: 890 | BF50: 870 | BG50: 810 | BH50: 759 | BI50: 667 | BJ50: 624 | BK50: 591 | BL50: 570 | BM50: 504 | BN50: 433 | BO50: 399 | BP50: 373 | BQ50: 340 | BR50: 268 | BS50: 258 | BT50: 222 | BU50: 188 | BV50: 154 | BW50: 233 | BX50: 205 | BY50: 484 | BZ50: 1086 | CA50: 1028 | CB50: 5338 | CC50: 604 | CE50: 394 | CF50: 1819 | CG50: 5279 | CH50: 5465 | CI50: 2399 | CJ50: 5223 | CK50: 8646 | CL50: 2640 | CN50: 2157 | CO50: 4166 | CP50: 13011
B51: 03 | C51: 44 | D51: 5780 | E51: C.S. SAYAN | F51: 9674 | H51: 4943 | I51: 4731 | K51: 82 | L51: 76 | M51: 86 | N51: 89 | O51: 88 | P51: 110 | Q51: 90 | R51: 88 | S51: 89 | T51: 88 | U51: 93 | V51: 69 | W51: 86 | X51: 86 | Y51: 94 | Z51: 88 | AA51: 87 | AB51: 88 | AC51: 91 | AD51: 80 | AE51: 86 | AF51: 102 | AG51: 88 | AH51: 87 | AI51: 84 | AJ51: 77 | AK51: 85 | AL51: 86 | AM51: 82 | AN51: 82 | AO51: 71 | AP51: 71 | AQ51: 72 | AR51: 72 | AS51: 79 | AT51: 98 | AU51: 84 | AV51: 89 | AW51: 89 | AX51: 81 | AY51: 479 | AZ51: 447 | BA51: 406 | BB51: 411 | BC51: 400 | BD51: 371 | BE51: 358 | BF51: 346 | BG51: 324 | BH51: 304 | BI51: 267 | BJ51: 249 | BK51: 237 | BL51: 228 | BM51: 201 | BN51: 174 | BO51: 159 | BP51: 150 | BQ51: 136 | BR51: 108 | BS51: 105 | BT51: 88 | BU51: 72 | BV51: 65 | BW51: 93 | BX51: 83 | BY51: 194 | BZ51: 434 | CA51: 411 | CB51: 2128 | CC51: 200 | CE51: 158 | CF51: 728 | CG51: 2111 | CH51: 2184 | CI51: 959 | CJ51: 2086 | CK51: 3459 | CL51: 1059 | CN51: 862 | CO51: 1665 | CP51: 5202
B52: 03 | C52: 45 | D52: 5774 | E52: C.S. 9 DE OCTUBRE | F52: 5563 | H52: 2843 | I52: 2720 | K52: 47 | L52: 43 | M52: 50 | N52: 50 | O52: 50 | P52: 63 | Q52: 52 | R52: 51 | S52: 52 | T52: 50 | U52: 54 | V52: 39 | W52: 49 | X52: 49 | Y52: 55 | Z52: 50 | AA52: 50 | AB52: 51 | AC52: 53 | AD52: 45 | AE52: 51 | AF52: 58 | AG52: 52 | AH52: 48 | AI52: 48 | AJ52: 44 | AK52: 49 | AL52: 49 | AM52: 47 | AN52: 48 | AO52: 40 | AP52: 42 | AQ52: 41 | AR52: 42 | AS52: 46 | AT52: 56 | AU52: 48 | AV52: 52 | AW52: 52 | AX52: 46 | AY52: 275 | AZ52: 260 | BA52: 231 | BB52: 238 | BC52: 231 | BD52: 213 | BE52: 204 | BF52: 201 | BG52: 186 | BH52: 175 | BI52: 154 | BJ52: 143 | BK52: 137 | BL52: 133 | BM52: 116 | BN52: 100 | BO52: 91 | BP52: 87 | BQ52: 77 | BR52: 61 | BS52: 59 | BT52: 50 | BU52: 43 | BV52: 35 | BW52: 53 | BX52: 48 | BY52: 112 | BZ52: 247 | CA52: 238 | CB52: 1230 | CC52: 160 | CE52: 90 | CF52: 418 | CG52: 1212 | CH52: 1256 | CI52: 552 | CJ52: 1202 | CK52: 1993 | CL52: 604 | CN52: 495 | CO52: 959 | CP52: 2997
B53: 03 | C53: 46 | D53: 5781 | E53: P.S. CHAMBARA | F53: 726 | H53: 371 | I53: 355 | K53: 6 | L53: 6 | M53: 6 | N53: 7 | O53: 7 | P53: 8 | Q53: 7 | R53: 6 | S53: 7 | T53: 6 | U53: 7 | V53: 6 | W53: 6 | X53: 7 | Y53: 7 | Z53: 7 | AA53: 7 | AB53: 6 | AC53: 7 | AD53: 6 | AE53: 6 | AF53: 8 | AG53: 7 | AH53: 6 | AI53: 7 | AJ53: 5 | AK53: 7 | AL53: 6 | AM53: 7 | AN53: 5 | AO53: 5 | AP53: 6 | AQ53: 5 | AR53: 6 | AS53: 6 | AT53: 7 | AU53: 6 | AV53: 7 | AW53: 7 | AX53: 6 | AY53: 35 | AZ53: 35 | BA53: 31 | BB53: 30 | BC53: 31 | BD53: 28 | BE53: 26 | BF53: 25 | BG53: 25 | BH53: 21 | BI53: 21 | BJ53: 19 | BK53: 19 | BL53: 16 | BM53: 14 | BN53: 14 | BO53: 11 | BP53: 12 | BQ53: 10 | BR53: 10 | BS53: 7 | BT53: 7 | BU53: 5 | BV53: 5 | BW53: 6 | BX53: 6 | BY53: 14 | BZ53: 30 | CA53: 32 | CB53: 158 | CC53: 18 | CE53: 12 | CF53: 54 | CG53: 159 | CH53: 165 | CI53: 72 | CJ53: 157 | CK53: 259 | CL53: 79 | CN53: 66 | CO53: 125 | CP53: 390
B54: 03 | C54: 47 | D54: 5775 | E54: P.S. LA MERCED | F54: 1209 | H54: 618 | I54: 591 | K54: 10 | L54: 10 | M54: 11 | N54: 11 | O54: 11 | P54: 14 | Q54: 11 | R54: 11 | S54: 11 | T54: 11 | U54: 12 | V54: 8 | W54: 11 | X54: 11 | Y54: 12 | Z54: 11 | AA54: 11 | AB54: 11 | AC54: 11 | AD54: 10 | AE54: 11 | AF54: 13 | AG54: 11 | AH54: 11 | AI54: 10 | AJ54: 10 | AK54: 11 | AL54: 10 | AM54: 10 | AN54: 11 | AO54: 8 | AP54: 10 | AQ54: 8 | AR54: 10 | AS54: 9 | AT54: 13 | AU54: 11 | AV54: 10 | AW54: 11 | AX54: 10 | AY54: 60 | AZ54: 55 | BA54: 50 | BB54: 52 | BC54: 51 | BD54: 45 | BE54: 45 | BF54: 43 | BG54: 41 | BH54: 37 | BI54: 33 | BJ54: 31 | BK54: 30 | BL54: 28 | BM54: 27 | BN54: 19 | BO54: 19 | BP54: 20 | BQ54: 18 | BR54: 13 | BS54: 12 | BT54: 12 | BU54: 10 | BV54: 7 | BW54: 11 | BX54: 13 | BY54: 24 | BZ54: 55 | CA54: 53 | CB54: 263 | CC54: 24 | CE54: 20 | CF54: 91 | CG54: 265 | CH54: 274 | CI54: 120 | CJ54: 259 | CK54: 430 | CL54: 135 | CN54: 108 | CO54: 208 | CP54: 647
B55: 03 | C55: 48 | D55: 5776 | E55: P.S. LA VILLA | F55: 6047 | H55: 3090 | I55: 2957 | K55: 51 | L55: 47 | M55: 54 | N55: 55 | O55: 55 | P55: 68 | Q55: 56 | R55: 56 | S55: 56 | T55: 54 | U55: 58 | V55: 44 | W55: 54 | X55: 53 | Y55: 60 | Z55: 54 | AA55: 54 | AB55: 55 | AC55: 57 | AD55: 49 | AE55: 54 | AF55: 64 | AG55: 55 | AH55: 55 | AI55: 52 | AJ55: 49 | AK55: 53 | AL55: 54 | AM55: 51 | AN55: 52 | AO55: 44 | AP55: 45 | AQ55: 45 | AR55: 44 | AS55: 50 | AT55: 61 | AU55: 53 | AV55: 56 | AW55: 56 | AX55: 50 | AY55: 299 | AZ55: 283 | BA55: 252 | BB55: 260 | BC55: 249 | BD55: 233 | BE55: 219 | BF55: 221 | BG55: 204 | BH55: 188 | BI55: 164 | BJ55: 158 | BK55: 148 | BL55: 139 | BM55: 126 | BN55: 108 | BO55: 101 | BP55: 92 | BQ55: 85 | BR55: 68 | BS55: 65 | BT55: 55 | BU55: 48 | BV55: 38 | BW55: 62 | BX55: 49 | BY55: 122 | BZ55: 274 | CA55: 256 | CB55: 1343 | CC55: 166 | CE55: 98 | CF55: 454 | CG55: 1318 | CH55: 1366 | CI55: 600 | CJ55: 1309 | CK55: 2157 | CL55: 663 | CN55: 538 | CO55: 1043 | CP55: 3251
B56: 03 | C56: 49 | D56: 5777 | E56: P.S. EL AHORCADO | F56: 484 | H56: 247 | I56: 237 | K56: 4 | L56: 4 | M56: 4 | N56: 5 | O56: 4 | P56: 6 | Q56: 4 | R56: 5 | S56: 5 | T56: 4 | U56: 5 | V56: 3 | W56: 4 | X56: 5 | Y56: 5 | Z56: 4 | AA56: 4 | AB56: 5 | AC56: 5 | AD56: 4 | AE56: 4 | AF56: 5 | AG56: 4 | AH56: 5 | AI56: 4 | AJ56: 4 | AK56: 4 | AL56: 5 | AM56: 4 | AN56: 4 | AO56: 4 | AP56: 3 | AQ56: 4 | AR56: 3 | AS56: 4 | AT56: 5 | AU56: 4 | AV56: 5 | AW56: 5 | AX56: 3 | AY56: 24 | AZ56: 23 | BA56: 20 | BB56: 21 | BC56: 20 | BD56: 18 | BE56: 19 | BF56: 17 | BG56: 15 | BH56: 17 | BI56: 14 | BJ56: 12 | BK56: 10 | BL56: 13 | BM56: 10 | BN56: 9 | BO56: 9 | BP56: 6 | BQ56: 7 | BR56: 4 | BS56: 5 | BT56: 5 | BU56: 5 | BV56: 2 | BW56: 4 | BX56: 3 | BY56: 9 | BZ56: 23 | CA56: 19 | CB56: 108 | CC56: 18 | CE56: 8 | CF56: 37 | CG56: 107 | CH56: 110 | CI56: 48 | CJ56: 105 | CK56: 174 | CL56: 50 | CN56: 44 | CO56: 83 | CP56: 262
B57: 03 | C57: 50 | D57: 6726 | E57: P.S. LA UNION | F57: 484 | H57: 247 | I57: 237 | K57: 4 | L57: 4 | M57: 4 | N57: 5 | O57: 4 | P57: 6 | Q57: 4 | R57: 5 | S57: 5 | T57: 4 | U57: 5 | V57: 3 | W57: 4 | X57: 5 | Y57: 5 | Z57: 4 | AA57: 4 | AB57: 5 | AC57: 5 | AD57: 4 | AE57: 4 | AF57: 5 | AG57: 4 | AH57: 5 | AI57: 4 | AJ57: 4 | AK57: 4 | AL57: 5 | AM57: 4 | AN57: 4 | AO57: 4 | AP57: 3 | AQ57: 4 | AR57: 3 | AS57: 4 | AT57: 5 | AU57: 4 | AV57: 5 | AW57: 5 | AX57: 3 | AY57: 24 | AZ57: 23 | BA57: 20 | BB57: 21 | BC57: 20 | BD57: 18 | BE57: 19 | BF57: 17 | BG57: 15 | BH57: 17 | BI57: 14 | BJ57: 12 | BK57: 10 | BL57: 13 | BM57: 10 | BN57: 9 | BO57: 9 | BP57: 6 | BQ57: 7 | BR57: 4 | BS57: 5 | BT57: 5 | BU57: 5 | BV57: 2 | BW57: 4 | BX57: 3 | BY57: 9 | BZ57: 23 | CA57: 19 | CB57: 108 | CC57: 18 | CE57: 8 | CF57: 37 | CG57: 107 | CH57: 110 | CI57: 48 | CJ57: 105 | CK57: 174 | CL57: 50 | CN57: 44 | CO57: 83 | CP57: 262
A58: 150812 | C58: 51 | D58: 150812 | E58: DISTRITO VEGUETA | F58: 23549 | H58: 11915 | I58: 11634 | K58: 205 | L58: 203 | M58: 211 | N58: 186 | O58: 271 | P58: 242 | Q58: 240 | R58: 252 | S58: 238 | T58: 221 | U58: 233 | V58: 220 | W58: 212 | X58: 231 | Y58: 285 | Z58: 219 | AA58: 256 | AB58: 226 | AC58: 228 | AD58: 197 | AE58: 241 | AF58: 201 | AG58: 225 | AH58: 175 | AI58: 192 | AJ58: 195 | AK58: 202 | AL58: 179 | AM58: 173 | AN58: 175 | AO58: 178 | AP58: 185 | AQ58: 178 | AR58: 180 | AS58: 183 | AT58: 165 | AU58: 163 | AV58: 175 | AW58: 180 | AX58: 208 | AY58: 1147 | AZ58: 1113 | BA58: 1042 | BB58: 1085 | BC58: 970 | BD58: 970 | BE58: 827 | BF58: 828 | BG58: 701 | BH58: 721 | BI58: 613 | BJ58: 612 | BK58: 531 | BL58: 573 | BM58: 453 | BN58: 452 | BO58: 366 | BP58: 337 | BQ58: 306 | BR58: 275 | BS58: 253 | BT58: 217 | BU58: 168 | BV58: 171 | BW58: 244 | BX58: 245 | BY58: 563 | BZ58: 925 | CA58: 913 | CB58: 5329 | CC58: 627 | CE58: 408 | CF58: 1861 | CG58: 5418 | CH58: 5334 | CI58: 2185 | CJ58: 5113 | CK58: 8251 | CL58: 2582 | CN58: 2307 | CO58: 3753 | CP58: 12638
B59: 04 | C59: 52 | D59: 5673 | E59: C.S. VEGUETA | F59: 7064 | H59: 3574 | I59: 3490 | K59: 61 | L59: 60 | M59: 63 | N59: 56 | O59: 80 | P59: 73 | Q59: 71 | R59: 77 | S59: 71 | T59: 67 | U59: 70 | V59: 66 | W59: 64 | X59: 69 | Y59: 84 | Z59: 67 | AA59: 77 | AB59: 68 | AC59: 68 | AD59: 59 | AE59: 72 | AF59: 61 | AG59: 66 | AH59: 54 | AI59: 58 | AJ59: 58 | AK59: 61 | AL59: 53 | AM59: 52 | AN59: 52 | AO59: 53 | AP59: 56 | AQ59: 53 | AR59: 55 | AS59: 55 | AT59: 49 | AU59: 49 | AV59: 52 | AW59: 54 | AX59: 62 | AY59: 343 | AZ59: 335 | BA59: 313 | BB59: 323 | BC59: 292 | BD59: 291 | BE59: 248 | BF59: 248 | BG59: 210 | BH59: 217 | BI59: 184 | BJ59: 183 | BK59: 159 | BL59: 173 | BM59: 136 | BN59: 136 | BO59: 110 | BP59: 101 | BQ59: 92 | BR59: 80 | BS59: 76 | BT59: 65 | BU59: 53 | BV59: 49 | BW59: 76 | BX59: 75 | BY59: 169 | BZ59: 278 | CA59: 274 | CB59: 1597 | CC59: 176 | CE59: 121 | CF59: 558 | CG59: 1624 | CH59: 1600 | CI59: 655 | CJ59: 1531 | CK59: 2477 | CL59: 777 | CN59: 692 | CO59: 1125 | CP59: 3791
B60: 04 | C60: 53 | D60: 5674 | E60: P.S. MAZO | F60: 2355 | H60: 1192 | I60: 1163 | K60: 21 | L60: 21 | M60: 21 | N60: 19 | O60: 28 | P60: 24 | Q60: 24 | R60: 25 | S60: 24 | T60: 22 | U60: 23 | V60: 22 | W60: 21 | X60: 23 | Y60: 30 | Z60: 21 | AA60: 26 | AB60: 22 | AC60: 23 | AD60: 20 | AE60: 24 | AF60: 20 | AG60: 23 | AH60: 17 | AI60: 18 | AJ60: 21 | AK60: 20 | AL60: 18 | AM60: 17 | AN60: 18 | AO60: 18 | AP60: 18 | AQ60: 18 | AR60: 18 | AS60: 18 | AT60: 17 | AU60: 16 | AV60: 18 | AW60: 18 | AX60: 21 | AY60: 114 | AZ60: 112 | BA60: 103 | BB60: 109 | BC60: 97 | BD60: 96 | BE60: 83 | BF60: 84 | BG60: 72 | BH60: 69 | BI60: 60 | BJ60: 63 | BK60: 54 | BL60: 57 | BM60: 45 | BN60: 44 | BO60: 36 | BP60: 35 | BQ60: 31 | BR60: 28 | BS60: 25 | BT60: 21 | BU60: 17 | BV60: 17 | BW60: 24 | BX60: 23 | BY60: 56 | BZ60: 94 | CA60: 92 | CB60: 533 | CC60: 63 | CE60: 42 | CF60: 187 | CG60: 544 | CH60: 534 | CI60: 219 | CJ60: 511 | CK60: 824 | CL60: 257 | CN60: 231 | CO60: 376 | CP60: 1262
B61: 04 | C61: 54 | D61: 5675 | E61: P.S. PRIMAVERA | F61: 3297 | H61: 1668 | I61: 1629 | K61: 29 | L61: 28 | M61: 30 | N61: 26 | O61: 38 | P61: 34 | Q61: 34 | R61: 35 | S61: 33 | T61: 31 | U61: 33 | V61: 30 | W61: 30 | X61: 32 | Y61: 40 | Z61: 31 | AA61: 36 | AB61: 31 | AC61: 32 | AD61: 28 | AE61: 34 | AF61: 28 | AG61: 32 | AH61: 24 | AI61: 27 | AJ61: 27 | AK61: 28 | AL61: 25 | AM61: 24 | AN61: 25 | AO61: 25 | AP61: 26 | AQ61: 25 | AR61: 25 | AS61: 26 | AT61: 23 | AU61: 23 | AV61: 24 | AW61: 25 | AX61: 29 | AY61: 161 | AZ61: 157 | BA61: 146 | BB61: 152 | BC61: 134 | BD61: 138 | BE61: 115 | BF61: 117 | BG61: 98 | BH61: 101 | BI61: 87 | BJ61: 84 | BK61: 75 | BL61: 79 | BM61: 63 | BN61: 64 | BO61: 52 | BP61: 46 | BQ61: 41 | BR61: 41 | BS61: 34 | BT61: 32 | BU61: 23 | BV61: 25 | BW61: 35 | BX61: 31 | BY61: 79 | BZ61: 129 | CA61: 127 | CB61: 749 | CC61: 138 | CE61: 57 | CF61: 261 | CG61: 759 | CH61: 747 | CI61: 306 | CJ61: 717 | CK61: 1155 | CL61: 360 | CN61: 323 | CO61: 525 | CP61: 1771
B62: 04 | C62: 55 | D62: 5676 | E62: P.S. MARIATEGUI | F62: 5652 | H62: 2859 | I62: 2793 | K62: 49 | L62: 50 | M62: 51 | N62: 44 | O62: 65 | P62: 58 | Q62: 58 | R62: 60 | S62: 57 | T62: 53 | U62: 56 | V62: 53 | W62: 51 | X62: 55 | Y62: 69 | Z62: 51 | AA62: 61 | AB62: 55 | AC62: 55 | AD62: 47 | AE62: 58 | AF62: 48 | AG62: 54 | AH62: 42 | AI62: 46 | AJ62: 47 | AK62: 49 | AL62: 43 | AM62: 42 | AN62: 42 | AO62: 43 | AP62: 44 | AQ62: 43 | AR62: 43 | AS62: 44 | AT62: 40 | AU62: 39 | AV62: 42 | AW62: 44 | AX62: 49 | AY62: 275 | AZ62: 267 | BA62: 251 | BB62: 260 | BC62: 231 | BD62: 235 | BE62: 198 | BF62: 198 | BG62: 167 | BH62: 174 | BI62: 148 | BJ62: 146 | BK62: 126 | BL62: 139 | BM62: 109 | BN62: 108 | BO62: 87 | BP62: 81 | BQ62: 75 | BR62: 65 | BS62: 61 | BT62: 52 | BU62: 40 | BV62: 42 | BW62: 57 | BX62: 60 | BY62: 135 | BZ62: 222 | CA62: 218 | CB62: 1280 | CC62: 163 | CE62: 99 | CF62: 446 | CG62: 1300 | CH62: 1281 | CI62: 526 | CJ62: 1227 | CK62: 1979 | CL62: 620 | CN62: 553 | CO62: 902 | CP62: 3032
B63: 04 | C63: 56 | D63: 5677 | E63: P.S. MEDIO MUNDO | F63: 4239 | H63: 2145 | I63: 2094 | K63: 37 | L63: 36 | M63: 38 | N63: 33 | O63: 49 | P63: 43 | Q63: 43 | R63: 45 | S63: 43 | T63: 40 | U63: 42 | V63: 40 | W63: 38 | X63: 42 | Y63: 51 | Z63: 40 | AA63: 46 | AB63: 41 | AC63: 41 | AD63: 35 | AE63: 43 | AF63: 36 | AG63: 41 | AH63: 31 | AI63: 35 | AJ63: 35 | AK63: 36 | AL63: 33 | AM63: 31 | AN63: 31 | AO63: 32 | AP63: 33 | AQ63: 32 | AR63: 32 | AS63: 33 | AT63: 30 | AU63: 29 | AV63: 32 | AW63: 32 | AX63: 38 | AY63: 207 | AZ63: 199 | BA63: 187 | BB63: 197 | BC63: 175 | BD63: 174 | BE63: 148 | BF63: 150 | BG63: 126 | BH63: 130 | BI63: 110 | BJ63: 110 | BK63: 96 | BL63: 103 | BM63: 82 | BN63: 82 | BO63: 67 | BP63: 60 | BQ63: 55 | BR63: 50 | BS63: 47 | BT63: 38 | BU63: 29 | BV63: 31 | BW63: 44 | BX63: 44 | BY63: 102 | BZ63: 166 | CA63: 165 | CB63: 960 | CC63: 82 | CE63: 73 | CF63: 334 | CG63: 974 | CH63: 960 | CI63: 393 | CJ63: 921 | CK63: 1486 | CL63: 465 | CN63: 416 | CO63: 675 | CP63: 2276
B64: 04 | C64: 57 | D64: 5678 | E64: P.S. TIROLER | F64: 942 | H64: 477 | I64: 465 | K64: 8 | L64: 8 | M64: 8 | N64: 8 | O64: 11 | P64: 10 | Q64: 10 | R64: 10 | S64: 10 | T64: 8 | U64: 9 | V64: 9 | W64: 8 | X64: 10 | Y64: 11 | Z64: 9 | AA64: 10 | AB64: 9 | AC64: 9 | AD64: 8 | AE64: 10 | AF64: 8 | AG64: 9 | AH64: 7 | AI64: 8 | AJ64: 7 | AK64: 8 | AL64: 7 | AM64: 7 | AN64: 7 | AO64: 7 | AP64: 8 | AQ64: 7 | AR64: 7 | AS64: 7 | AT64: 6 | AU64: 7 | AV64: 7 | AW64: 7 | AX64: 9 | AY64: 47 | AZ64: 43 | BA64: 42 | BB64: 44 | BC64: 41 | BD64: 36 | BE64: 35 | BF64: 31 | BG64: 28 | BH64: 30 | BI64: 24 | BJ64: 26 | BK64: 21 | BL64: 22 | BM64: 18 | BN64: 18 | BO64: 14 | BP64: 14 | BQ64: 12 | BR64: 11 | BS64: 10 | BT64: 9 | BU64: 6 | BV64: 7 | BW64: 8 | BX64: 12 | BY64: 22 | BZ64: 36 | CA64: 37 | CB64: 210 | CC64: 5 | CE64: 16 | CF64: 75 | CG64: 217 | CH64: 212 | CI64: 86 | CJ64: 206 | CK64: 330 | CL64: 103 | CN64: 92 | CO64: 150 | CP64: 506
A65: 150900 | C65: 58 | D65: 150900 | E65: PROVINCIA OYON | F65: 18825 | H65: 9400 | I65: 9425 | K65: 125 | L65: 93 | M65: 141 | N65: 128 | O65: 122 | P65: 116 | Q65: 144 | R65: 167 | S65: 182 | T65: 153 | U65: 179 | V65: 183 | W65: 197 | X65: 189 | Y65: 209 | Z65: 229 | AA65: 218 | AB65: 219 | AC65: 179 | AD65: 196 | AE65: 225 | AF65: 224 | AG65: 199 | AH65: 231 | AI65: 195 | AJ65: 190 | AK65: 211 | AL65: 188 | AM65: 193 | AN65: 188 | AO65: 183 | AP65: 177 | AQ65: 198 | AR65: 183 | AS65: 174 | AT65: 144 | AU65: 178 | AV65: 162 | AW65: 158 | AX65: 148 | AY65: 829 | AZ65: 829 | BA65: 667 | BB65: 710 | BC65: 645 | BD65: 678 | BE65: 558 | BF65: 515 | BG65: 569 | BH65: 522 | BI65: 507 | BJ65: 513 | BK65: 457 | BL65: 451 | BM65: 413 | BN65: 384 | BO65: 322 | BP65: 313 | BQ65: 279 | BR65: 254 | BS65: 190 | BT65: 253 | BU65: 159 | BV65: 194 | BW65: 195 | BX65: 301 | BY65: 477 | BZ65: 1021 | CA65: 814 | CB65: 3767 | CC65: 715 | CE65: 218 | CF65: 1153 | CG65: 4248 | CH65: 5101 | CI65: 2224 | CJ65: 3681 | CK65: 6212 | CL65: 2460 | CN65: 1998 | CO65: 3749 | CP65: 9247
A66: 150901 | C66: 59 | D66: 150901 | E66: DISTRITO OYON | F66: 11412 | H66: 5647 | I66: 5765 | K66: 90 | L66: 74 | M66: 91 | N66: 93 | O66: 73 | P66: 62 | Q66: 80 | R66: 116 | S66: 120 | T66: 113 | U66: 116 | V66: 119 | W66: 153 | X66: 134 | Y66: 140 | Z66: 156 | AA66: 150 | AB66: 143 | AC66: 131 | AD66: 136 | AE66: 150 | AF66: 153 | AG66: 129 | AH66: 141 | AI66: 122 | AJ66: 119 | AK66: 119 | AL66: 111 | AM66: 122 | AN66: 117 | AO66: 117 | AP66: 111 | AQ66: 122 | AR66: 119 | AS66: 108 | AT66: 88 | AU66: 122 | AV66: 104 | AW66: 94 | AX66: 107 | AY66: 535 | AZ66: 533 | BA66: 441 | BB66: 493 | BC66: 401 | BD66: 427 | BE66: 342 | BF66: 318 | BG66: 330 | BH66: 313 | BI66: 291 | BJ66: 314 | BK66: 245 | BL66: 247 | BM66: 205 | BN66: 194 | BO66: 169 | BP66: 158 | BQ66: 139 | BR66: 122 | BS66: 76 | BT66: 110 | BU66: 62 | BV66: 90 | BW66: 62 | BX66: 130 | BY66: 290 | BZ66: 641 | CA66: 529 | CB66: 2398 | CC66: 462 | CE66: 164 | CF66: 748 | CG66: 2863 | CH66: 3326 | CI66: 1375 | CJ66: 2429 | CK66: 3627 | CL66: 1118 | CN66: 1378 | CO66: 2375 | CP66: 5629
B67: 05 | C67: 60 | D67: 5659 | E67: C.S. OYON | F67: 8445 | H67: 4179 | I67: 4266 | K67: 67 | L67: 55 | M67: 68 | N67: 68 | O67: 54 | P67: 46 | Q67: 59 | R67: 86 | S67: 89 | T67: 84 | U67: 86 | V67: 88 | W67: 112 | X67: 100 | Y67: 104 | Z67: 115 | AA67: 111 | AB67: 106 | AC67: 97 | AD67: 100 | AE67: 111 | AF67: 113 | AG67: 95 | AH67: 105 | AI67: 90 | AJ67: 88 | AK67: 88 | AL67: 83 | AM67: 90 | AN67: 87 | AO67: 87 | AP67: 82 | AQ67: 90 | AR67: 88 | AS67: 80 | AT67: 64 | AU67: 90 | AV67: 77 | AW67: 70 | AX67: 79 | AY67: 396 | AZ67: 395 | BA67: 326 | BB67: 364 | BC67: 297 | BD67: 315 | BE67: 251 | BF67: 237 | BG67: 243 | BH67: 232 | BI67: 214 | BJ67: 234 | BK67: 180 | BL67: 184 | BM67: 151 | BN67: 142 | BO67: 126 | BP67: 115 | BQ67: 105 | BR67: 86 | BS67: 57 | BT67: 83 | BU67: 46 | BV67: 68 | BW67: 49 | BX67: 97 | BY67: 215 | BZ67: 476 | CA67: 390 | CB67: 1777 | CC67: 342 | CE67: 122 | CF67: 554 | CG67: 2119 | CH67: 2460 | CI67: 1017 | CJ67: 1797 | CK67: 2680 | CL67: 832 | CN67: 1019 | CO67: 1757 | CP67: 4161
B68: 05 | C68: 61 | D68: 5660 | E68: P.S. MALLAY | F68: 913 | H68: 452 | I68: 461 | K68: 7 | L68: 6 | M68: 7 | N68: 8 | O68: 6 | P68: 5 | Q68: 6 | R68: 10 | S68: 10 | T68: 9 | U68: 9 | V68: 10 | W68: 13 | X68: 10 | Y68: 11 | Z68: 13 | AA68: 12 | AB68: 11 | AC68: 11 | AD68: 10 | AE68: 12 | AF68: 12 | AG68: 11 | AH68: 11 | AI68: 10 | AJ68: 9 | AK68: 10 | AL68: 8 | AM68: 10 | AN68: 9 | AO68: 9 | AP68: 9 | AQ68: 10 | AR68: 9 | AS68: 9 | AT68: 7 | AU68: 10 | AV68: 8 | AW68: 8 | AX68: 8 | AY68: 43 | AZ68: 43 | BA68: 36 | BB68: 39 | BC68: 32 | BD68: 34 | BE68: 27 | BF68: 26 | BG68: 26 | BH68: 26 | BI68: 23 | BJ68: 26 | BK68: 21 | BL68: 18 | BM68: 16 | BN68: 16 | BO68: 14 | BP68: 12 | BQ68: 10 | BR68: 10 | BS68: 5 | BT68: 10 | BU68: 5 | BV68: 7 | BW68: 3 | BX68: 12 | BY68: 23 | BZ68: 49 | CA68: 41 | CB68: 194 | CC68: 37 | CE68: 13 | CF68: 61 | CG68: 230 | CH68: 265 | CI68: 109 | CJ68: 195 | CK68: 291 | CL68: 88 | CN68: 110 | CO68: 189 | CP68: 452
B69: 05 | C69: 62 | D69: 5661 | E69: P.S. NAVA | F69: 114 | H69: 56 | I69: 58 | K69: 1 | L69: 1 | M69: 1 | N69: 1 | O69: 1 | P69: 0 | Q69: 1 | R69: 1 | S69: 1 | T69: 1 | U69: 1 | V69: 1 | W69: 2 | X69: 1 | Y69: 1 | Z69: 2 | AA69: 2 | AB69: 1 | AC69: 1 | AD69: 2 | AE69: 2 | AF69: 2 | AG69: 1 | AH69: 2 | AI69: 1 | AJ69: 1 | AK69: 1 | AL69: 1 | AM69: 1 | AN69: 1 | AO69: 1 | AP69: 1 | AQ69: 1 | AR69: 1 | AS69: 1 | AT69: 1 | AU69: 1 | AV69: 1 | AW69: 1 | AX69: 1 | AY69: 5 | AZ69: 5 | BA69: 5 | BB69: 5 | BC69: 5 | BD69: 4 | BE69: 5 | BF69: 2 | BG69: 4 | BH69: 3 | BI69: 5 | BJ69: 0 | BK69: 2 | BL69: 3 | BM69: 2 | BN69: 3 | BO69: 0 | BP69: 5 | BQ69: 0 | BR69: 5 | BS69: 0 | BT69: 0 | BU69: 0 | BV69: 0 | BW69: 0 | BX69: 0 | BY69: 3 | BZ69: 7 | CA69: 5 | CB69: 19 | CC69: 5 | CE69: 2 | CF69: 7 | CG69: 30 | CH69: 33 | CI69: 12 | CJ69: 24 | CK69: 38 | CL69: 10 | CN69: 14 | CO69: 23 | CP69: 58
B70: 05 | C70: 63 | D70: 5662 | E70: P.S. TINTA | F70: 799 | H70: 395 | I70: 404 | K70: 6 | L70: 5 | M70: 6 | N70: 7 | O70: 5 | P70: 4 | Q70: 6 | R70: 8 | S70: 8 | T70: 8 | U70: 8 | V70: 8 | W70: 11 | X70: 9 | Y70: 10 | Z70: 11 | AA70: 11 | AB70: 10 | AC70: 9 | AD70: 10 | AE70: 11 | AF70: 10 | AG70: 9 | AH70: 10 | AI70: 9 | AJ70: 8 | AK70: 8 | AL70: 8 | AM70: 9 | AN70: 8 | AO70: 8 | AP70: 8 | AQ70: 9 | AR70: 9 | AS70: 8 | AT70: 6 | AU70: 9 | AV70: 7 | AW70: 7 | AX70: 7 | AY70: 38 | AZ70: 35 | BA70: 30 | BB70: 36 | BC70: 27 | BD70: 31 | BE70: 24 | BF70: 22 | BG70: 23 | BH70: 23 | BI70: 20 | BJ70: 22 | BK70: 17 | BL70: 17 | BM70: 15 | BN70: 13 | BO70: 12 | BP70: 10 | BQ70: 10 | BR70: 10 | BS70: 5 | BT70: 8 | BU70: 4 | BV70: 6 | BW70: 3 | BX70: 10 | BY70: 20 | BZ70: 44 | CA70: 37 | CB70: 169 | CC70: 23 | CE70: 11 | CF70: 52 | CG70: 200 | CH70: 235 | CI70: 98 | CJ70: 169 | CK70: 254 | CL70: 78 | CN70: 97 | CO70: 168 | CP70: 393
B71: 05 | C71: 64 | D71: 5648 | E71: P.S. RAPAZ | F71: 1141 | H71: 565 | I71: 576 | K71: 9 | L71: 7 | M71: 9 | N71: 9 | O71: 7 | P71: 7 | Q71: 8 | R71: 11 | S71: 12 | T71: 11 | U71: 12 | V71: 12 | W71: 15 | X71: 14 | Y71: 14 | Z71: 15 | AA71: 14 | AB71: 15 | AC71: 13 | AD71: 14 | AE71: 14 | AF71: 16 | AG71: 13 | AH71: 13 | AI71: 12 | AJ71: 13 | AK71: 12 | AL71: 11 | AM71: 12 | AN71: 12 | AO71: 12 | AP71: 11 | AQ71: 12 | AR71: 12 | AS71: 10 | AT71: 10 | AU71: 12 | AV71: 11 | AW71: 8 | AX71: 12 | AY71: 53 | AZ71: 55 | BA71: 44 | BB71: 49 | BC71: 40 | BD71: 43 | BE71: 35 | BF71: 31 | BG71: 34 | BH71: 29 | BI71: 29 | BJ71: 32 | BK71: 25 | BL71: 25 | BM71: 21 | BN71: 20 | BO71: 17 | BP71: 16 | BQ71: 14 | BR71: 11 | BS71: 9 | BT71: 9 | BU71: 7 | BV71: 9 | BW71: 7 | BX71: 11 | BY71: 29 | BZ71: 65 | CA71: 56 | CB71: 239 | CC71: 55 | CE71: 16 | CF71: 74 | CG71: 284 | CH71: 333 | CI71: 139 | CJ71: 244 | CK71: 364 | CL71: 110 | CN71: 138 | CO71: 238 | CP71: 565
A72: 150902 | C72: 65 | D72: 150902 | E72: DISTRITO ANDAJES | F72: 604 | H72: 286 | I72: 318 | K72: 0 | L72: 0 | M72: 0 | N72: 2 | O72: 0 | P72: 0 | Q72: 1 | R72: 0 | S72: 3 | T72: 0 | U72: 5 | V72: 1 | W72: 4 | X72: 6 | Y72: 6 | Z72: 2 | AA72: 1 | AB72: 6 | AC72: 2 | AD72: 1 | AE72: 4 | AF72: 3 | AG72: 2 | AH72: 6 | AI72: 6 | AJ72: 4 | AK72: 3 | AL72: 2 | AM72: 1 | AN72: 2 | AO72: 3 | AP72: 1 | AQ72: 6 | AR72: 3 | AS72: 3 | AT72: 4 | AU72: 3 | AV72: 0 | AW72: 3 | AX72: 2 | AY72: 11 | AZ72: 9 | BA72: 6 | BB72: 7 | BC72: 12 | BD72: 15 | BE72: 15 | BF72: 12 | BG72: 12 | BH72: 14 | BI72: 25 | BJ72: 10 | BK72: 20 | BL72: 23 | BM72: 33 | BN72: 32 | BO72: 14 | BP72: 23 | BQ72: 16 | BR72: 22 | BS72: 17 | BT72: 34 | BU72: 18 | BV72: 28 | BW72: 31 | BX72: 44 | BY72: 4 | BZ72: 17 | CA72: 10 | CB72: 67 | CC72: 14 | CE72: 0 | CF72: 6 | CG72: 55 | CH72: 87 | CI72: 38 | CJ72: 41 | CK72: 223 | CL72: 247 | CN72: =SUM(U72:AD72) -> 34 | CO72: =SUM(AE72:AX72) -> 61 | CP72: =SUM(AY72:BN72) -> 256
B73: 05 | C73: 66 | D73: 5654 | E73: P.S. ANDAJES | F73: 604 | H73: 286 | I73: 318 | K73: 0 | L73: 0 | M73: 0 | N73: 2 | O73: 0 | P73: 0 | Q73: 1 | R73: 0 | S73: 3 | T73: 0 | U73: 5 | V73: 1 | W73: 4 | X73: 6 | Y73: 6 | Z73: 2 | AA73: 1 | AB73: 6 | AC73: 2 | AD73: 1 | AE73: 4 | AF73: 3 | AG73: 2 | AH73: 6 | AI73: 6 | AJ73: 4 | AK73: 3 | AL73: 2 | AM73: 1 | AN73: 2 | AO73: 3 | AP73: 1 | AQ73: 6 | AR73: 3 | AS73: 3 | AT73: 4 | AU73: 3 | AV73: 0 | AW73: 3 | AX73: 2 | AY73: 11 | AZ73: 9 | BA73: 6 | BB73: 7 | BC73: 12 | BD73: 15 | BE73: 15 | BF73: 12 | BG73: 12 | BH73: 14 | BI73: 25 | BJ73: 10 | BK73: 20 | BL73: 23 | BM73: 33 | BN73: 32 | BO73: 14 | BP73: 23 | BQ73: 16 | BR73: 22 | BS73: 17 | BT73: 34 | BU73: 18 | BV73: 28 | BW73: 31 | BX73: 44 | BY73: 4 | BZ73: 17 | CA73: 10 | CB73: 67 | CC73: 14 | CE73: =SUM(K73:L73) -> 0 | CF73: =SUM(M73:T73) -> 6 | CG73: =SUM(K73:AH73) -> 55 | CH73: =SUM(U73:AT73) -> 87 | CI73: =SUM(AI73:AT73) -> 38 | CJ73: =SUM(AU73:BB73) -> 41 | CK73: =SUM(BC73:BN73) -> 223 | CL73: =SUM(BO73:BX73) -> 247 | CN73: 34 | CO73: 61 | CP73: 256
A74: 150903 | C74: 67 | D74: 150903 | E74: DISTRITO CAUJUL | F74: 633 | H74: 314 | I74: 319 | K74: 4 | L74: 3 | M74: 5 | N74: 2 | O74: 6 | P74: 7 | Q74: 3 | R74: 5 | S74: 8 | T74: 6 | U74: 5 | V74: 3 | W74: 6 | X74: 4 | Y74: 5 | Z74: 4 | AA74: 3 | AB74: 8 | AC74: 3 | AD74: 3 | AE74: 7 | AF74: 6 | AG74: 5 | AH74: 9 | AI74: 4 | AJ74: 4 | AK74: 4 | AL74: 5 | AM74: 4 | AN74: 5 | AO74: 6 | AP74: 10 | AQ74: 6 | AR74: 6 | AS74: 6 | AT74: 3 | AU74: 1 | AV74: 10 | AW74: 3 | AX74: 1 | AY74: 22 | AZ74: 27 | BA74: 22 | BB74: 17 | BC74: 19 | BD74: 25 | BE74: 16 | BF74: 17 | BG74: 22 | BH74: 15 | BI74: 14 | BJ74: 15 | BK74: 17 | BL74: 21 | BM74: 19 | BN74: 19 | BO74: 22 | BP74: 10 | BQ74: 17 | BR74: 8 | BS74: 11 | BT74: 11 | BU74: 8 | BV74: 14 | BW74: 11 | BX74: 16 | BY74: 14 | BZ74: 29 | CA74: 30 | CB74: 116 | CC74: 27 | CE74: 7 | CF74: 42 | CG74: 120 | CH74: 134 | CI74: 63 | CJ74: 103 | CK74: 219 | CL74: 128 | CN74: 44 | CO74: 105 | CP74: 307
B75: 05 | C75: 68 | D75: 5655 | E75: P.S. CAUJUL | F75: 633 | H75: 314 | I75: 319 | K75: 4 | L75: 3 | M75: 5 | N75: 2 | O75: 6 | P75: 7 | Q75: 3 | R75: 5 | S75: 8 | T75: 6 | U75: 5 | V75: 3 | W75: 6 | X75: 4 | Y75: 5 | Z75: 4 | AA75: 3 | AB75: 8 | AC75: 3 | AD75: 3 | AE75: 7 | AF75: 6 | AG75: 5 | AH75: 9 | AI75: 4 | AJ75: 4 | AK75: 4 | AL75: 5 | AM75: 4 | AN75: 5 | AO75: 6 | AP75: 10 | AQ75: 6 | AR75: 6 | AS75: 6 | AT75: 3 | AU75: 1 | AV75: 10 | AW75: 3 | AX75: 1 | AY75: 22 | AZ75: 27 | BA75: 22 | BB75: 17 | BC75: 19 | BD75: 25 | BE75: 16 | BF75: 17 | BG75: 22 | BH75: 15 | BI75: 14 | BJ75: 15 | BK75: 17 | BL75: 21 | BM75: 19 | BN75: 19 | BO75: 22 | BP75: 10 | BQ75: 17 | BR75: 8 | BS75: 11 | BT75: 11 | BU75: 8 | BV75: 14 | BW75: 11 | BX75: 16 | BY75: 14 | BZ75: 29 | CA75: 30 | CB75: 116 | CC75: 27 | CE75: 7 | CF75: 42 | CG75: 120 | CH75: 134 | CI75: 63 | CJ75: 103 | CK75: 219 | CL75: 128 | CN75: 44 | CO75: 105 | CP75: 307
A76: 150904 | C76: 69 | D76: 150904 | E76: DISTRITO COCHAMARCA | F76: 1874 | H76: 970 | I76: 904 | K76: 9 | L76: 5 | M76: 16 | N76: 11 | O76: 7 | P76: 9 | Q76: 9 | R76: 9 | S76: 7 | T76: 10 | U76: 12 | V76: 17 | W76: 19 | X76: 16 | Y76: 20 | Z76: 25 | AA76: 22 | AB76: 24 | AC76: 14 | AD76: 25 | AE76: 31 | AF76: 19 | AG76: 26 | AH76: 32 | AI76: 27 | AJ76: 16 | AK76: 38 | AL76: 26 | AM76: 32 | AN76: 35 | AO76: 25 | AP76: 22 | AQ76: 32 | AR76: 33 | AS76: 23 | AT76: 23 | AU76: 26 | AV76: 19 | AW76: 20 | AX76: 16 | AY76: 96 | AZ76: 80 | BA76: 69 | BB76: 58 | BC76: 53 | BD76: 60 | BE76: 41 | BF76: 35 | BG76: 61 | BH76: 59 | BI76: 48 | BJ76: 48 | BK76: 58 | BL76: 30 | BM76: 33 | BN76: 29 | BO76: 22 | BP76: 23 | BQ76: 25 | BR76: 27 | BS76: 11 | BT76: 19 | BU76: 14 | BV76: 11 | BW76: 24 | BX76: 33 | BY76: 47 | BZ76: 128 | CA76: 113 | CB76: 340 | CC76: 47 | CE76: 14 | CF76: 78 | CG76: 394 | CH76: 634 | CI76: 332 | CJ76: 384 | CK76: 555 | CL76: 209 | CN76: 194 | CO76: 521 | CP76: 858
B77: 03 | C77: 70 | D77: 5783 | E77: P.S. COCHAMARCA | F77: 750 | H77: 388 | I77: 362 | K77: 4 | L77: 2 | M77: 7 | N77: 4 | O77: 3 | P77: 4 | Q77: 4 | R77: 3 | S77: 3 | T77: 4 | U77: 5 | V77: 7 | W77: 8 | X77: 7 | Y77: 8 | Z77: 10 | AA77: 9 | AB77: 9 | AC77: 6 | AD77: 11 | AE77: 13 | AF77: 7 | AG77: 10 | AH77: 13 | AI77: 11 | AJ77: 6 | AK77: 16 | AL77: 10 | AM77: 13 | AN77: 14 | AO77: 9 | AP77: 10 | AQ77: 13 | AR77: 13 | AS77: 9 | AT77: 9 | AU77: 10 | AV77: 8 | AW77: 8 | AX77: 6 | AY77: 37 | AZ77: 33 | BA77: 28 | BB77: 22 | BC77: 21 | BD77: 25 | BE77: 15 | BF77: 15 | BG77: 25 | BH77: 23 | BI77: 18 | BJ77: 22 | BK77: 24 | BL77: 11 | BM77: 12 | BN77: 12 | BO77: 8 | BP77: 10 | BQ77: 10 | BR77: 10 | BS77: 6 | BT77: 5 | BU77: 7 | BV77: 4 | BW77: 8 | BX77: 13 | BY77: 20 | BZ77: 50 | CA77: 46 | CB77: 140 | CC77: 20 | CE77: 6 | CF77: 32 | CG77: 161 | CH77: 256 | CI77: 133 | CJ77: 152 | CK77: 223 | CL77: 81 | CN77: 80 | CO77: 208 | CP77: 343
B78: 03 | C78: 71 | D78: 5784 | E78: P.S. COLCAPAMPA | F78: 862 | H78: 446 | I78: 416 | K78: 4 | L78: 2 | M78: 7 | N78: 5 | O78: 3 | P78: 4 | Q78: 4 | R78: 4 | S78: 3 | T78: 5 | U78: 5 | V78: 8 | W78: 8 | X78: 7 | Y78: 9 | Z78: 12 | AA78: 10 | AB78: 11 | AC78: 6 | AD78: 11 | AE78: 14 | AF78: 8 | AG78: 12 | AH78: 14 | AI78: 12 | AJ78: 8 | AK78: 17 | AL78: 12 | AM78: 15 | AN78: 15 | AO78: 12 | AP78: 9 | AQ78: 15 | AR78: 15 | AS78: 11 | AT78: 11 | AU78: 12 | AV78: 9 | AW78: 9 | AX78: 8 | AY78: 45 | AZ78: 36 | BA78: 31 | BB78: 28 | BC78: 24 | BD78: 28 | BE78: 19 | BF78: 17 | BG78: 28 | BH78: 27 | BI78: 23 | BJ78: 20 | BK78: 27 | BL78: 13 | BM78: 16 | BN78: 13 | BO78: 10 | BP78: 11 | BQ78: 11 | BR78: 13 | BS78: 4 | BT78: 11 | BU78: 6 | BV78: 6 | BW78: 14 | BX78: 15 | BY78: 21 | BZ78: 57 | CA78: 52 | CB78: 156 | CC78: 22 | CE78: 6 | CF78: 35 | CG78: 176 | CH78: 287 | CI78: 152 | CJ78: 178 | CK78: 255 | CL78: 101 | CN78: 87 | CO78: 238 | CP78: 395
B79: 03 | C79: 72 | D79: 5785 | E79: P.S. YARUCAYA | F79: 262 | H79: 136 | I79: 126 | K79: 1 | L79: 1 | M79: 2 | N79: 2 | O79: 1 | P79: 1 | Q79: 1 | R79: 2 | S79: 1 | T79: 1 | U79: 2 | V79: 2 | W79: 3 | X79: 2 | Y79: 3 | Z79: 3 | AA79: 3 | AB79: 4 | AC79: 2 | AD79: 3 | AE79: 4 | AF79: 4 | AG79: 4 | AH79: 5 | AI79: 4 | AJ79: 2 | AK79: 5 | AL79: 4 | AM79: 4 | AN79: 6 | AO79: 4 | AP79: 3 | AQ79: 4 | AR79: 5 | AS79: 3 | AT79: 3 | AU79: 4 | AV79: 2 | AW79: 3 | AX79: 2 | AY79: 14 | AZ79: 11 | BA79: 10 | BB79: 8 | BC79: 8 | BD79: 7 | BE79: 7 | BF79: 3 | BG79: 8 | BH79: 9 | BI79: 7 | BJ79: 6 | BK79: 7 | BL79: 6 | BM79: 5 | BN79: 4 | BO79: 4 | BP79: 2 | BQ79: 4 | BR79: 4 | BS79: 1 | BT79: 3 | BU79: 1 | BV79: 1 | BW79: 2 | BX79: 5 | BY79: 6 | BZ79: 21 | CA79: 15 | CB79: 44 | CC79: 5 | CE79: 2 | CF79: 11 | CG79: 57 | CH79: 91 | CI79: 47 | CJ79: 54 | CK79: 77 | CL79: 27 | CN79: 27 | CO79: 75 | CP79: 120
A80: 150905 | C80: 73 | D80: 150905 | E80: DISTRITO NAVAN | F80: 1060 | H80: 528 | I80: 532 | K80: 7 | L80: 3 | M80: 13 | N80: 7 | O80: 9 | P80: 5 | Q80: 11 | R80: 10 | S80: 6 | T80: 4 | U80: 10 | V80: 17 | W80: 3 | X80: 5 | Y80: 7 | Z80: 11 | AA80: 8 | AB80: 10 | AC80: 7 | AD80: 6 | AE80: 5 | AF80: 7 | AG80: 7 | AH80: 15 | AI80: 8 | AJ80: 16 | AK80: 10 | AL80: 14 | AM80: 8 | AN80: 6 | AO80: 10 | AP80: 6 | AQ80: 7 | AR80: 2 | AS80: 6 | AT80: 10 | AU80: 4 | AV80: 7 | AW80: 7 | AX80: 3 | AY80: 27 | AZ80: 29 | BA80: 19 | BB80: 34 | BC80: 47 | BD80: 39 | BE80: 27 | BF80: 34 | BG80: 38 | BH80: 38 | BI80: 48 | BJ80: 30 | BK80: 36 | BL80: 32 | BM80: 38 | BN80: 29 | BO80: 27 | BP80: 21 | BQ80: 21 | BR80: 19 | BS80: 16 | BT80: 21 | BU80: 12 | BV80: 13 | BW80: 19 | BX80: 29 | BY80: 39 | BZ80: 58 | CA80: 28 | CB80: 204 | CC80: 58 | CE80: 10 | CF80: 65 | CG80: 193 | CH80: 221 | CI80: 103 | CJ80: 130 | CK80: 436 | CL80: 198 | CN80: 84 | CO80: 158 | CP80: 545
B81: 05 | C81: 74 | D81: 5656 | E81: P.S. NAVAN | F81: 1060 | H81: 528 | I81: 532 | K81: 7 | L81: 3 | M81: 13 | N81: 7 | O81: 9 | P81: 5 | Q81: 11 | R81: 10 | S81: 6 | T81: 4 | U81: 10 | V81: 17 | W81: 3 | X81: 5 | Y81: 7 | Z81: 11 | AA81: 8 | AB81: 10 | AC81: 7 | AD81: 6 | AE81: 5 | AF81: 7 | AG81: 7 | AH81: 15 | AI81: 8 | AJ81: 16 | AK81: 10 | AL81: 14 | AM81: 8 | AN81: 6 | AO81: 10 | AP81: 6 | AQ81: 7 | AR81: 2 | AS81: 6 | AT81: 10 | AU81: 4 | AV81: 7 | AW81: 7 | AX81: 3 | AY81: 27 | AZ81: 29 | BA81: 19 | BB81: 34 | BC81: 47 | BD81: 39 | BE81: 27 | BF81: 34 | BG81: 38 | BH81: 38 | BI81: 48 | BJ81: 30 | BK81: 36 | BL81: 32 | BM81: 38 | BN81: 29 | BO81: 27 | BP81: 21 | BQ81: 21 | BR81: 19 | BS81: 16 | BT81: 21 | BU81: 12 | BV81: 13 | BW81: 19 | BX81: 29 | BY81: 39 | BZ81: 58 | CA81: 28 | CB81: 204 | CC81: 58 | CE81: 10 | CF81: 65 | CG81: 193 | CH81: 221 | CI81: 103 | CJ81: 130 | CK81: 436 | CL81: 198 | CN81: 84 | CO81: 158 | CP81: 545
A82: 150906 | C82: 75 | D82: 150906 | E82: DISTRITO PACHANGARA | F82: 3242 | H82: 1655 | I82: 1587 | K82: 15 | L82: 8 | M82: 16 | N82: 13 | O82: 27 | P82: 33 | Q82: 40 | R82: 27 | S82: 38 | T82: 20 | U82: 31 | V82: 26 | W82: 12 | X82: 24 | Y82: 31 | Z82: 31 | AA82: 34 | AB82: 28 | AC82: 22 | AD82: 25 | AE82: 28 | AF82: 36 | AG82: 30 | AH82: 28 | AI82: 28 | AJ82: 31 | AK82: 37 | AL82: 30 | AM82: 26 | AN82: 23 | AO82: 22 | AP82: 27 | AQ82: 25 | AR82: 20 | AS82: 28 | AT82: 16 | AU82: 22 | AV82: 22 | AW82: 31 | AX82: 19 | AY82: 138 | AZ82: 151 | BA82: 110 | BB82: 101 | BC82: 113 | BD82: 112 | BE82: 117 | BF82: 99 | BG82: 106 | BH82: 83 | BI82: 81 | BJ82: 96 | BK82: 81 | BL82: 98 | BM82: 85 | BN82: 81 | BO82: 68 | BP82: 78 | BQ82: 61 | BR82: 56 | BS82: 59 | BT82: 58 | BU82: 45 | BV82: 38 | BW82: 48 | BX82: 49 | BY82: 83 | BZ82: 148 | CA82: 104 | CB82: 642 | CC82: 107 | CE82: 23 | CF82: 214 | CG82: 623 | CH82: 699 | CI82: 313 | CJ82: 594 | CK82: 1152 | CL82: 560 | CN82: 264 | CO82: 529 | CP82: 1652
B83: 05 | C83: 76 | D83: 5657 | E83: C.S. CHURIN | F83: 2010 | H83: 1026 | I83: 984 | K83: 9 | L83: 5 | M83: 10 | N83: 8 | O83: 17 | P83: 20 | Q83: 24 | R83: 18 | S83: 22 | T83: 14 | U83: 19 | V83: 17 | W83: 7 | X83: 16 | Y83: 19 | Z83: 20 | AA83: 21 | AB83: 18 | AC83: 14 | AD83: 16 | AE83: 17 | AF83: 22 | AG83: 19 | AH83: 17 | AI83: 17 | AJ83: 19 | AK83: 22 | AL83: 20 | AM83: 16 | AN83: 14 | AO83: 14 | AP83: 16 | AQ83: 15 | AR83: 13 | AS83: 17 | AT83: 10 | AU83: 14 | AV83: 13 | AW83: 19 | AX83: 12 | AY83: 86 | AZ83: 91 | BA83: 68 | BB83: 61 | BC83: 70 | BD83: 69 | BE83: 71 | BF83: 64 | BG83: 65 | BH83: 51 | BI83: 50 | BJ83: 59 | BK83: 50 | BL83: 60 | BM83: 53 | BN83: 49 | BO83: 42 | BP83: 50 | BQ83: 38 | BR83: 35 | BS83: 36 | BT83: 37 | BU83: 29 | BV83: 22 | BW83: 36 | BX83: 28 | BY83: 51 | BZ83: 92 | CA83: 64 | CB83: 395 | CC83: 86 | CE83: 14 | CF83: 133 | CG83: 389 | CH83: 435 | CI83: 193 | CJ83: 364 | CK83: 711 | CL83: 353 | CN83: 167 | CO83: 326 | CP83: 1017
B84: 05 | C84: 77 | D84: 5658 | E84: P.S. PACHANGARA | F84: 584 | H84: 298 | I84: 286 | K84: 3 | L84: 1 | M84: 3 | N84: 2 | O84: 5 | P84: 6 | Q84: 7 | R84: 5 | S84: 7 | T84: 3 | U84: 6 | V84: 4 | W84: 2 | X84: 4 | Y84: 6 | Z84: 5 | AA84: 6 | AB84: 5 | AC84: 4 | AD84: 4 | AE84: 5 | AF84: 7 | AG84: 5 | AH84: 5 | AI84: 5 | AJ84: 6 | AK84: 7 | AL84: 5 | AM84: 5 | AN84: 4 | AO84: 4 | AP84: 5 | AQ84: 5 | AR84: 3 | AS84: 5 | AT84: 3 | AU84: 4 | AV84: 4 | AW84: 6 | AX84: 3 | AY84: 25 | AZ84: 29 | BA84: 19 | BB84: 20 | BC84: 21 | BD84: 20 | BE84: 22 | BF84: 16 | BG84: 20 | BH84: 14 | BI84: 15 | BJ84: 17 | BK84: 15 | BL84: 18 | BM84: 15 | BN84: 15 | BO84: 12 | BP84: 13 | BQ84: 10 | BR84: 11 | BS84: 11 | BT84: 11 | BU84: 7 | BV84: 8 | BW84: 6 | BX84: 10 | BY84: 15 | BZ84: 27 | CA84: 18 | CB84: 116 | CC84: 9 | CE84: 4 | CF84: 38 | CG84: 110 | CH84: 125 | CI84: 57 | CJ84: 110 | CK84: 208 | CL84: 99 | CN84: 46 | CO84: 96 | CP84: 301
B85: 05 | C85: 78 | D85: 5649 | E85: P.S. HUANCAHUASI | F85: 648 | H85: 331 | I85: 317 | K85: 3 | L85: 2 | M85: 3 | N85: 3 | O85: 5 | P85: 7 | Q85: 9 | R85: 4 | S85: 9 | T85: 3 | U85: 6 | V85: 5 | W85: 3 | X85: 4 | Y85: 6 | Z85: 6 | AA85: 7 | AB85: 5 | AC85: 4 | AD85: 5 | AE85: 6 | AF85: 7 | AG85: 6 | AH85: 6 | AI85: 6 | AJ85: 6 | AK85: 8 | AL85: 5 | AM85: 5 | AN85: 5 | AO85: 4 | AP85: 6 | AQ85: 5 | AR85: 4 | AS85: 6 | AT85: 3 | AU85: 4 | AV85: 5 | AW85: 6 | AX85: 4 | AY85: 27 | AZ85: 31 | BA85: 23 | BB85: 20 | BC85: 22 | BD85: 23 | BE85: 24 | BF85: 19 | BG85: 21 | BH85: 18 | BI85: 16 | BJ85: 20 | BK85: 16 | BL85: 20 | BM85: 17 | BN85: 17 | BO85: 14 | BP85: 15 | BQ85: 13 | BR85: 10 | BS85: 12 | BT85: 10 | BU85: 9 | BV85: 8 | BW85: 6 | BX85: 11 | BY85: 17 | BZ85: 29 | CA85: 22 | CB85: 131 | CC85: 12 | CE85: 5 | CF85: 43 | CG85: 124 | CH85: 139 | CI85: 63 | CJ85: 120 | CK85: 233 | CL85: 108 | CN85: 51 | CO85: 107 | CP85: 334
C86: 79 | E86: PROVINCIA HUARAL | F86: 1465 | H86: 788 | I86: 677 | K86: 11 | L86: 7 | M86: 9 | N86: 9 | O86: 11 | P86: 8 | Q86: 11 | R86: 11 | S86: 15 | T86: 7 | U86: 14 | V86: 9 | W86: 11 | X86: 10 | Y86: 10 | Z86: 9 | AA86: 12 | AB86: 10 | AC86: 10 | AD86: 13 | AE86: 9 | AF86: 11 | AG86: 15 | AH86: 10 | AI86: 10 | AJ86: 9 | AK86: 13 | AL86: 13 | AM86: 9 | AN86: 11 | AO86: 11 | AP86: 16 | AQ86: 9 | AR86: 7 | AS86: 12 | AT86: 11 | AU86: 10 | AV86: 7 | AW86: 13 | AX86: 10 | AY86: 59 | AZ86: 49 | BA86: 75 | BB86: 48 | BC86: 65 | BD86: 43 | BE86: 40 | BF86: 49 | BG86: 52 | BH86: 44 | BI86: 40 | BJ86: 38 | BK86: 45 | BL86: 45 | BM86: 44 | BN86: 40 | BO86: 33 | BP86: 25 | BQ86: 31 | BR86: 23 | BS86: 25 | BT86: 18 | BU86: 28 | BV86: 22 | BW86: 26 | BX86: 35 | BY86: 25 | BZ86: 54 | CA86: 51 | CB86: 271 | CC86: 25 | CE86: 18 | CF86: 81 | CG86: 252 | CH86: 284 | CI86: 131 | CJ86: 271 | CK86: 545 | CL86: 266 | CN86: 108 | CO86: 216 | CP86: 776
C87: 80 | D87: 150600 | E87: IHUARI - ACOTAMA | F87: 1465 | H87: 788 | I87: 677 | K87: 11 | L87: 7 | M87: 9 | N87: 9 | O87: 11 | P87: 8 | Q87: 11 | R87: 11 | S87: 15 | T87: 7 | U87: 14 | V87: 9 | W87: 11 | X87: 10 | Y87: 10 | Z87: 9 | AA87: 12 | AB87: 10 | AC87: 10 | AD87: 13 | AE87: 9 | AF87: 11 | AG87: 15 | AH87: 10 | AI87: 10 | AJ87: 9 | AK87: 13 | AL87: 13 | AM87: 9 | AN87: 11 | AO87: 11 | AP87: 16 | AQ87: 9 | AR87: 7 | AS87: 12 | AT87: 11 | AU87: 10 | AV87: 7 | AW87: 13 | AX87: 10 | AY87: 59 | AZ87: 49 | BA87: 75 | BB87: 48 | BC87: 65 | BD87: 43 | BE87: 40 | BF87: 49 | BG87: 52 | BH87: 44 | BI87: 40 | BJ87: 38 | BK87: 45 | BL87: 45 | BM87: 44 | BN87: 40 | BO87: 33 | BP87: 25 | BQ87: 31 | BR87: 23 | BS87: 25 | BT87: 18 | BU87: 28 | BV87: 22 | BW87: 26 | BX87: 35 | BY87: 19 | BZ87: 54 | CA87: 51 | CB87: 271 | CC87: 25 | CE87: 18 | CF87: 81 | CG87: 252 | CH87: 284 | CI87: 131 | CJ87: 271 | CK87: 545 | CL87: 266 | CN87: 108 | CO87: 216 | CP87: 776
A88: 150606 | B88: 03 | C88: 81
C89: 82 | E89: MICRORED HUAURA | F89: =SUM(H89:I89) -> 38534 | H89: =K89+M89+O89+Q89+S89+U89+W89+Y89+AA89+AC89+AE89+AG89+AI89+AK89+AM89+AO89+AQ89+AS89+AU89+AW89+AY89+BA89+BC89+BE89+BG89+BI89+BK89+BM89+BO89+BQ89+BS89+BU89+BW89 -> 19590 | I89: =L89+N89+P89+R89+T89+V89+X89+Z89+AB89+AD89+AF89+AH89+AJ89+AL89+AN89+AP89+AR89+AT89+AV89+AX89+AZ89+BB89+BD89+BF89+BH89+BJ89+BL89+BN89+BP89+BR89+BT89+BV89+BX89 -> 18944 | K89: =K13+K24 -> 306 | L89: =L13+L24 -> 291 | M89: 363 | N89: 338 | O89: 362 | P89: 284 | Q89: 329 | R89: 301 | S89: 238 | T89: 209 | U89: 238 | V89: 235 | W89: 367 | X89: 359 | Y89: 382 | Z89: 361 | AA89: 356 | AB89: 337 | AC89: 335 | AD89: 327 | AE89: 315 | AF89: 317 | AG89: 323 | AH89: 335 | AI89: 307 | AJ89: 303 | AK89: 321 | AL89: 300 | AM89: 308 | AN89: 313 | AO89: 300 | AP89: 282 | AQ89: 314 | AR89: 276 | AS89: 305 | AT89: 308 | AU89: 312 | AV89: 272 | AW89: 368 | AX89: 375 | AY89: 1939 | AZ89: 1815 | BA89: 1778 | BB89: 1688 | BC89: 1541 | BD89: 1565 | BE89: 1491 | BF89: 1388 | BG89: 1267 | BH89: 1286 | BI89: 1068 | BJ89: 1169 | BK89: 990 | BL89: 988 | BM89: 830 | BN89: 788 | BO89: 637 | BP89: 611 | BQ89: 521 | BR89: 474 | BS89: 401 | BT89: 346 | BU89: 293 | BV89: 294 | BW89: 385 | BX89: =BX13+BX24 -> 409 | BY89: 773 | BZ89: 1568 | CA89: 1513 | CB89: 8911 | CC89: 919 | CE89: =CE13+CE24 -> 597 | CF89: 2424 | CG89: 7608 | CH89: 8224 | CI89: 3637 | CJ89: 8547 | CK89: 14371 | CL89: 4371 | CN89: =CN13+CN24 -> 3297 | CO89: 6254 | CP89: 21591
B90: 1 | C90: 83 | E90: MICRORED HUALMAY | F90: =SUM(H90:I90) -> 86939 | H90: =K90+M90+O90+Q90+S90+U90+W90+Y90+AA90+AC90+AE90+AG90+AI90+AK90+AM90+AO90+AQ90+AS90+AU90+AW90+AY90+BA90+BC90+BE90+BG90+BI90+BK90+BM90+BO90+BQ90+BS90+BU90+BW90 -> 43492 | I90: 43447 | K90: =K44+K20+K16+K12 -> 659 | L90: =L44+L20+L16+L12 -> 656 | M90: 625 | N90: 636 | O90: 585 | P90: 570 | Q90: 680 | R90: 655 | S90: 638 | T90: 628 | U90: 598 | V90: 558 | W90: 781 | X90: 729 | Y90: 830 | Z90: 755 | AA90: 775 | AB90: 765 | AC90: 738 | AD90: 707 | AE90: 706 | AF90: 731 | AG90: 709 | AH90: 656 | AI90: 711 | AJ90: 692 | AK90: 667 | AL90: 640 | AM90: 632 | AN90: 648 | AO90: 632 | AP90: 556 | AQ90: 667 | AR90: 654 | AS90: 740 | AT90: 680 | AU90: 721 | AV90: 691 | AW90: 813 | AX90: 754 | AY90: 3987 | AZ90: 3969 | BA90: 3577 | BB90: 3636 | BC90: 3442 | BD90: 3503 | BE90: 3142 | BF90: 3169 | BG90: 2927 | BH90: 3017 | BI90: 2625 | BJ90: 2552 | BK90: 2198 | BL90: 2265 | BM90: 1841 | BN90: 1869 | BO90: 1570 | BP90: 1667 | BQ90: 1349 | BR90: 1390 | BS90: 1063 | BT90: 1115 | BU90: 783 | BV90: 793 | BW90: 1081 | BX90: =BX44+BX20+BX16+BX12 -> 1141 | BY90: 1717 | BZ90: 3367 | CA90: 3335 | CB90: 19846 | CC90: 1943 | CE90: =CE44+CE20+CE16+CE12 -> 1315 | CF90: 5017 | CG90: 16370 | CH90: 17957 | CI90: 7919 | CJ90: 18148 | CK90: 32550 | CL90: 11952 | CN90: =CN44+CN20+CN16+CN12 -> 7236 | CO90: 13700 | CP90: 47719
B91: 2 | C91: 84 | E91: MICRORED SAYAN | F91: 29923 | H91: 15437 | I91: 14486 | K91: =K50+K30+K76++K87 -> 226 | L91: =L50+L30+L76++L87 -> 209 | M91: 247 | N91: 256 | O91: 250 | P91: 305 | Q91: 260 | R91: 259 | S91: 266 | T91: 254 | U91: 278 | V91: 209 | W91: 266 | X91: 261 | Y91: 287 | Z91: 273 | AA91: 275 | AB91: 274 | AC91: 269 | AD91: 256 | AE91: 284 | AF91: 303 | AG91: 284 | AH91: 282 | AI91: 264 | AJ91: 234 | AK91: 291 | AL91: 272 | AM91: 275 | AN91: 275 | AO91: 241 | AP91: 234 | AQ91: 239 | AR91: 245 | AS91: 254 | AT91: 298 | AU91: 280 | AV91: 271 | AW91: 288 | AX91: 251 | AY91: 1433 | AZ91: 1342 | BA91: 1275 | BB91: 1216 | BC91: 1226 | BD91: 1125 | BE91: 1069 | BF91: 1016 | BG91: 1013 | BH91: 928 | BI91: 831 | BJ91: 770 | BK91: 761 | BL91: 687 | BM91: 650 | BN91: 551 | BO91: 523 | BP91: 477 | BQ91: 435 | BR91: 347 | BS91: 322 | BT91: 286 | BU91: 249 | BV91: 210 | BW91: 326 | BX91: =BX50+BX30+BX76++BX87 -> 310 | BY91: 596 | BZ91: 1366 | CA91: 1299 | CB91: 6397 | CC91: 723 | CE91: =CE50+CE30+CE76++CE87 -> 435 | CF91: 2097 | CG91: 6333 | CH91: 6923 | CI91: 3122 | CJ91: 6356 | CK91: 10627 | CL91: 3485 | CN91: =CN50+CN30+CN76++CN87 -> 2648 | CO91: 5365 | CP91: 15893
B92: 3 | C92: 85 | E92: MICRORED VEGUETA | F92: 23549 | H92: 11915 | I92: 11634 | K92: =K58 -> 205 | L92: =L58 -> 203 | M92: 211 | N92: 186 | O92: 271 | P92: 242 | Q92: 240 | R92: 252 | S92: 238 | T92: 221 | U92: 233 | V92: 220 | W92: 212 | X92: 231 | Y92: 285 | Z92: 219 | AA92: 256 | AB92: 226 | AC92: 228 | AD92: 197 | AE92: 241 | AF92: 201 | AG92: 225 | AH92: 175 | AI92: 192 | AJ92: 195 | AK92: 202 | AL92: 179 | AM92: 173 | AN92: 175 | AO92: 178 | AP92: 185 | AQ92: 178 | AR92: 180 | AS92: 183 | AT92: 165 | AU92: 163 | AV92: 175 | AW92: 180 | AX92: 208 | AY92: 1147 | AZ92: 1113 | BA92: 1042 | BB92: 1085 | BC92: 970 | BD92: 970 | BE92: 827 | BF92: 828 | BG92: 701 | BH92: 721 | BI92: 613 | BJ92: 612 | BK92: 531 | BL92: 573 | BM92: 453 | BN92: 452 | BO92: 366 | BP92: 337 | BQ92: 306 | BR92: 275 | BS92: 253 | BT92: 217 | BU92: 168 | BV92: 171 | BW92: 244 | BX92: =BX58 -> 245 | BY92: 563 | BZ92: 925 | CA92: 913 | CB92: 5329 | CC92: 627 | CE92: =CE58 -> 408 | CF92: 1861 | CG92: 5418 | CH92: 5334 | CI92: 2185 | CJ92: 5113 | CK92: 8251 | CL92: 2582 | CN92: =CN58 -> 2307 | CO92: 3753 | CP92: 12638
B93: 4 | C93: 86 | E93: MICRORED CHURIN - OYON | F93: 20913 | H93: 10469 | I93: 10444 | K93: =K82+K66+K72+K74+K80+K18+K35+K40 -> 126 | L93: =L82+L66+L72+L74+L80+L18+L35+L40 -> 97 | M93: 143 | N93: 136 | O93: 148 | P93: 123 | Q93: 160 | R93: 179 | S93: 192 | T93: 163 | U93: 200 | V93: 186 | W93: 203 | X93: 197 | Y93: 217 | Z93: 237 | AA93: 228 | AB93: 220 | AC93: 198 | AD93: 203 | AE93: 233 | AF93: 232 | AG93: 213 | AH93: 231 | AI93: 207 | AJ93: 199 | AK93: 209 | AL93: 201 | AM93: 197 | AN93: 179 | AO93: 179 | AP93: 184 | AQ93: 192 | AR93: 181 | AS93: 179 | AT93: 146 | AU93: 175 | AV93: 165 | AW93: 178 | AX93: 168 | AY93: 867 | AZ93: 862 | BA93: 713 | BB93: 766 | BC93: 706 | BD93: 712 | BE93: 615 | BF93: 574 | BG93: 630 | BH93: 566 | BI93: 583 | BJ93: 593 | BK93: 540 | BL93: 525 | BM93: 496 | BN93: 464 | BO93: 418 | BP93: 393 | BQ93: 351 | BR93: 318 | BS93: 276 | BT93: 332 | BU93: 229 | BV93: 275 | BW93: 268 | BX93: =BX82+BX66+BX72+BX74+BX80+BX18+BX35+BX40 -> 437 | BY93: 506 | BZ93: 1042 | CA93: 844 | CB93: 4073 | CC93: 798 | CE93: =CE82+CE66+CE72+CE74+CE80+CE18+CE35+CE40 -> 223 | CF93: 1244 | CG93: 4465 | CH93: 5251 | CI93: 2253 | CJ93: 3894 | CK93: 7004 | CL93: 3297 | CN93: =CN82+CN66+CN72+CN74+CN80+CN18+CN35+CN40 -> 2089 | CO93: 3848 | CP93: 10212

Sheet etapas y mredes
C2: POBLACION ASIGNADA POR DISTRITO SIERRA, HOSPITAL, MICROREDES Y POR ETAPAS DE VIDA 2017
C7: DISTRITO | P7: MICROREDES
C8: 65 | D8: 67 | E8: 11 | F8: 74 | G8: 60 | H8: 28 | I8: 76 | J8: 33 | N8: 4 | P8: 82 | Q8: 83 | R8: 84 | S8: 85 | T8: 86
B9: POBLACION POR ETAPAS DE VIDA | C9: Andajes | D9: Caujul | E9: Checras | F9: Naván | G9: Oyón | H9: Paccho | I9: Pachangara | J9: Santa Leonor | K9: TOTAL | L9: PORC. (%) | N9: HOSPITAL HUACHO | P9: HUAURA | Q9: HUALMAY | R9: SAYAN | S9: VEGUETA | T9: CHURIN OYON | U9: Total Microredes
A11: 81 | B11: Infantil (Men.1año) | C11: =VLOOKUP(C$8,Poblacion!$C$8:$CP$93,$A11) -> 0 | D11: =VLOOKUP(D$8,Poblacion!$C$8:$CP$93,$A11) -> 7 | E11: =VLOOKUP(E$8,Poblacion!$C$8:$CP$93,$A11) -> 5 | F11: =VLOOKUP(F$8,Poblacion!$C$8:$CP$93,$A11) -> 10 | G11: =VLOOKUP(G$8,Poblacion!$C$8:$CP$93,$A11) -> 122 | H11: =VLOOKUP(H$8,Poblacion!$C$8:$CP$93,$A11) -> 9 | I11: =VLOOKUP(I$8,Poblacion!$C$8:$CP$93,$A11) -> 14 | J11: =VLOOKUP(J$8,Poblacion!$C$8:$CP$93,$A11) -> 5 | K11: =SUM(C11:J11) -> 172 | L11: =IFERROR((K11/$K$20)*100,0) -> 1.02907742 | N11: =VLOOKUP(N$8,Poblacion!$C$8:$CP$93,$A11) -> 1437 | P11: =VLOOKUP(P$8,Poblacion!$C$8:$CP$93,$A11) -> 597 | Q11: =VLOOKUP(Q$8,Poblacion!$C$8:$CP$93,$A11) -> 1315 | R11: =VLOOKUP(R$8,Poblacion!$C$8:$CP$93,$A11) -> 435 | S11: =VLOOKUP(S$8,Poblacion!$C$8:$CP$93,$A11) -> 408 | T11: =VLOOKUP(T$8,Poblacion!$C$8:$CP$93,$A11) -> 223 | U11: =SUM(P11:T11) -> 2978
A12: 82 | B12: Pre-escolar (01-04años) | C12: =VLOOKUP(C$8,Poblacion!$C$8:$CP$93,$A12) -> 6 | D12: =VLOOKUP(D$8,Poblacion!$C$8:$CP$93,$A12) -> 42 | E12: =VLOOKUP(E$8,Poblacion!$C$8:$CP$93,$A12) -> 11 | F12: =VLOOKUP(F$8,Poblacion!$C$8:$CP$93,$A12) -> 65 | G12: =VLOOKUP(G$8,Poblacion!$C$8:$CP$93,$A12) -> 554 | H12: =VLOOKUP(H$8,Poblacion!$C$8:$CP$93,$A12) -> 93 | I12: =VLOOKUP(I$8,Poblacion!$C$8:$CP$93,$A12) -> 133 | J12: =VLOOKUP(J$8,Poblacion!$C$8:$CP$93,$A12) -> 65 | K12: 969 | L12: 5.797535001 | N12: =VLOOKUP(N$8,Poblacion!$C$8:$CP$93,$A12) -> 3698 | P12: =VLOOKUP(P$8,Poblacion!$C$8:$CP$93,$A12) -> 2424 | Q12: =VLOOKUP(Q$8,Poblacion!$C$8:$CP$93,$A12) -> 5017 | R12: =VLOOKUP(R$8,Poblacion!$C$8:$CP$93,$A12) -> 2097 | S12: =VLOOKUP(S$8,Poblacion!$C$8:$CP$93,$A12) -> 1861 | T12: =VLOOKUP(T$8,Poblacion!$C$8:$CP$93,$A12) -> 1244 | U12: 12643
A13: 83 | B13: Niño (0-11años) | C13: =VLOOKUP(C$8,Poblacion!$C$8:$CP$93,$A13) -> 55 | D13: =VLOOKUP(D$8,Poblacion!$C$8:$CP$93,$A13) -> 120 | E13: =VLOOKUP(E$8,Poblacion!$C$8:$CP$93,$A13) -> 145 | F13: =VLOOKUP(F$8,Poblacion!$C$8:$CP$93,$A13) -> 193 | G13: =VLOOKUP(G$8,Poblacion!$C$8:$CP$93,$A13) -> 2119 | H13: =VLOOKUP(H$8,Poblacion!$C$8:$CP$93,$A13) -> 255 | I13: =VLOOKUP(I$8,Poblacion!$C$8:$CP$93,$A13) -> 389 | J13: =VLOOKUP(J$8,Poblacion!$C$8:$CP$93,$A13) -> 211 | K13: 3487 | L13: 20.86274979 | N13: =VLOOKUP(N$8,Poblacion!$C$8:$CP$93,$A13) -> 10706 | P13: =VLOOKUP(P$8,Poblacion!$C$8:$CP$93,$A13) -> 7608 | Q13: =VLOOKUP(Q$8,Poblacion!$C$8:$CP$93,$A13) -> 16370 | R13: =VLOOKUP(R$8,Poblacion!$C$8:$CP$93,$A13) -> 6333 | S13: =VLOOKUP(S$8,Poblacion!$C$8:$CP$93,$A13) -> 5418 | T13: =VLOOKUP(T$8,Poblacion!$C$8:$CP$93,$A13) -> 4465 | U13: 40194
A14: 84 | B14: Escolar (05-17años) | C14: =VLOOKUP(C$8,Poblacion!$C$8:$CP$93,$A14) -> 87 | D14: =VLOOKUP(D$8,Poblacion!$C$8:$CP$93,$A14) -> 134 | E14: =VLOOKUP(E$8,Poblacion!$C$8:$CP$93,$A14) -> 227 | F14: =VLOOKUP(F$8,Poblacion!$C$8:$CP$93,$A14) -> 221 | G14: =VLOOKUP(G$8,Poblacion!$C$8:$CP$93,$A14) -> 2460 | H14: =VLOOKUP(H$8,Poblacion!$C$8:$CP$93,$A14) -> 305 | I14: =VLOOKUP(I$8,Poblacion!$C$8:$CP$93,$A14) -> 435 | J14: =VLOOKUP(J$8,Poblacion!$C$8:$CP$93,$A14) -> 252 | K14: 4121 | L14: 24.65597703 | N14: =VLOOKUP(N$8,Poblacion!$C$8:$CP$93,$A14) -> 9743 | P14: =VLOOKUP(P$8,Poblacion!$C$8:$CP$93,$A14) -> 8224 | Q14: =VLOOKUP(Q$8,Poblacion!$C$8:$CP$93,$A14) -> 17957 | R14: =VLOOKUP(R$8,Poblacion!$C$8:$CP$93,$A14) -> 6923 | S14: =VLOOKUP(S$8,Poblacion!$C$8:$CP$93,$A14) -> 5334 | T14: =VLOOKUP(T$8,Poblacion!$C$8:$CP$93,$A14) -> 5251 | U14: 43689
A15: 85 | B15: Adolescente (12-17años) | C15: =VLOOKUP(C$8,Poblacion!$C$8:$CP$93,$A15) -> 38 | D15: =VLOOKUP(D$8,Poblacion!$C$8:$CP$93,$A15) -> 63 | E15: =VLOOKUP(E$8,Poblacion!$C$8:$CP$93,$A15) -> 98 | F15: =VLOOKUP(F$8,Poblacion!$C$8:$CP$93,$A15) -> 103 | G15: =VLOOKUP(G$8,Poblacion!$C$8:$CP$93,$A15) -> 1017 | H15: =VLOOKUP(H$8,Poblacion!$C$8:$CP$93,$A15) -> 152 | I15: =VLOOKUP(I$8,Poblacion!$C$8:$CP$93,$A15) -> 193 | J15: =VLOOKUP(J$8,Poblacion!$C$8:$CP$93,$A15) -> 111 | K15: 1775 | L15: 10.61983966 | N15: =VLOOKUP(N$8,Poblacion!$C$8:$CP$93,$A15) -> 4172 | P15: =VLOOKUP(P$8,Poblacion!$C$8:$CP$93,$A15) -> 3637 | Q15: =VLOOKUP(Q$8,Poblacion!$C$8:$CP$93,$A15) -> 7919 | R15: =VLOOKUP(R$8,Poblacion!$C$8:$CP$93,$A15) -> 3122 | S15: =VLOOKUP(S$8,Poblacion!$C$8:$CP$93,$A15) -> 2185 | T15: =VLOOKUP(T$8,Poblacion!$C$8:$CP$93,$A15) -> 2253 | U15: 19116
A16: 86 | B16: Adulto Joven (18-29años) | C16: =VLOOKUP(C$8,Poblacion!$C$8:$CP$93,$A16) -> 41 | D16: =VLOOKUP(D$8,Poblacion!$C$8:$CP$93,$A16) -> 103 | E16: =VLOOKUP(E$8,Poblacion!$C$8:$CP$93,$A16) -> 134 | F16: =VLOOKUP(F$8,Poblacion!$C$8:$CP$93,$A16) -> 130 | G16: =VLOOKUP(G$8,Poblacion!$C$8:$CP$93,$A16) -> 1797 | H16: =VLOOKUP(H$8,Poblacion!$C$8:$CP$93,$A16) -> 212 | I16: =VLOOKUP(I$8,Poblacion!$C$8:$CP$93,$A16) -> 364 | J16: =VLOOKUP(J$8,Poblacion!$C$8:$CP$93,$A16) -> 251 | K16: 3032 | L16: 18.14048103 | N16: =VLOOKUP(N$8,Poblacion!$C$8:$CP$93,$A16) -> 9483 | P16: =VLOOKUP(P$8,Poblacion!$C$8:$CP$93,$A16) -> 8547 | Q16: =VLOOKUP(Q$8,Poblacion!$C$8:$CP$93,$A16) -> 18148 | R16: =VLOOKUP(R$8,Poblacion!$C$8:$CP$93,$A16) -> 6356 | S16: =VLOOKUP(S$8,Poblacion!$C$8:$CP$93,$A16) -> 5113 | T16: =VLOOKUP(T$8,Poblacion!$C$8:$CP$93,$A16) -> 3894 | U16: 42058
A17: 87 | B17: Adulto (30-59años) | C17: =VLOOKUP(C$8,Poblacion!$C$8:$CP$93,$A17) -> 223 | D17: =VLOOKUP(D$8,Poblacion!$C$8:$CP$93,$A17) -> 219 | E17: =VLOOKUP(E$8,Poblacion!$C$8:$CP$93,$A17) -> 317 | F17: =VLOOKUP(F$8,Poblacion!$C$8:$CP$93,$A17) -> 436 | G17: =VLOOKUP(G$8,Poblacion!$C$8:$CP$93,$A17) -> 2680 | H17: =VLOOKUP(H$8,Poblacion!$C$8:$CP$93,$A17) -> 558 | I17: =VLOOKUP(I$8,Poblacion!$C$8:$CP$93,$A17) -> 711 | J17: =VLOOKUP(J$8,Poblacion!$C$8:$CP$93,$A17) -> 472 | K17: 5616 | L17: 33.60057437 | N17: =VLOOKUP(N$8,Poblacion!$C$8:$CP$93,$A17) -> 19765 | P17: =VLOOKUP(P$8,Poblacion!$C$8:$CP$93,$A17) -> 14371 | Q17: =VLOOKUP(Q$8,Poblacion!$C$8:$CP$93,$A17) -> 32550 | R17: =VLOOKUP(R$8,Poblacion!$C$8:$CP$93,$A17) -> 10627 | S17: =VLOOKUP(S$8,Poblacion!$C$8:$CP$93,$A17) -> 8251 | T17: =VLOOKUP(T$8,Poblacion!$C$8:$CP$93,$A17) -> 7004 | U17: 72803
A18: 88 | B18: Adu.Mayor (60 a MAS) | C18: =VLOOKUP(C$8,Poblacion!$C$8:$CP$93,$A18) -> 247 | D18: =VLOOKUP(D$8,Poblacion!$C$8:$CP$93,$A18) -> 128 | E18: =VLOOKUP(E$8,Poblacion!$C$8:$CP$93,$A18) -> 324 | F18: =VLOOKUP(F$8,Poblacion!$C$8:$CP$93,$A18) -> 198 | G18: =VLOOKUP(G$8,Poblacion!$C$8:$CP$93,$A18) -> 832 | H18: =VLOOKUP(H$8,Poblacion!$C$8:$CP$93,$A18) -> 444 | I18: =VLOOKUP(I$8,Poblacion!$C$8:$CP$93,$A18) -> 353 | J18: =VLOOKUP(J$8,Poblacion!$C$8:$CP$93,$A18) -> 278 | K18: 2804 | L18: 16.77635515 | N18: =VLOOKUP(N$8,Poblacion!$C$8:$CP$93,$A18) -> 8047 | P18: =VLOOKUP(P$8,Poblacion!$C$8:$CP$93,$A18) -> 4371 | Q18: =VLOOKUP(Q$8,Poblacion!$C$8:$CP$93,$A18) -> 11952 | R18: =VLOOKUP(R$8,Poblacion!$C$8:$CP$93,$A18) -> 3485 | S18: =VLOOKUP(S$8,Poblacion!$C$8:$CP$93,$A18) -> 2582 | T18: =VLOOKUP(T$8,Poblacion!$C$8:$CP$93,$A18) -> 3297 | U18: 25687
A19: 79 | B19: Gestantes | C19: =VLOOKUP(C$8,Poblacion!$C$8:$CP$93,$A19) -> 14 | D19: =VLOOKUP(D$8,Poblacion!$C$8:$CP$93,$A19) -> 27 | E19: =VLOOKUP(E$8,Poblacion!$C$8:$CP$93,$A19) -> 47 | F19: =VLOOKUP(F$8,Poblacion!$C$8:$CP$93,$A19) -> 58 | G19: =VLOOKUP(G$8,Poblacion!$C$8:$CP$93,$A19) -> 342 | H19: =VLOOKUP(H$8,Poblacion!$C$8:$CP$93,$A19) -> 47 | I19: =VLOOKUP(I$8,Poblacion!$C$8:$CP$93,$A19) -> 86 | J19: =VLOOKUP(J$8,Poblacion!$C$8:$CP$93,$A19) -> 36 | K19: 657 | L19: 3.930836425 | N19: =VLOOKUP(N$8,Poblacion!$C$8:$CP$93,$A19) -> 937 | P19: =VLOOKUP(P$8,Poblacion!$C$8:$CP$93,$A19) -> 919 | Q19: =VLOOKUP(Q$8,Poblacion!$C$8:$CP$93,$A19) -> 1943 | R19: =VLOOKUP(R$8,Poblacion!$C$8:$CP$93,$A19) -> 723 | S19: =VLOOKUP(S$8,Poblacion!$C$8:$CP$93,$A19) -> 627 | T19: =VLOOKUP(T$8,Poblacion!$C$8:$CP$93,$A19) -> 798 | U19: 5010
B20: TOTAL | C20: =C13+C15+C16+C17+C18 -> 604 | D20: =D13+D15+D16+D17+D18 -> 633 | E20: 1018 | F20: 1060 | G20: 8445 | H20: 1621 | I20: 2010 | J20: 1323 | K20: =K13+K15+K16+K17+K18 -> 16714 | L20: =IFERROR((K20/$K$20)*100,0) -> 100 | N20: =N13+N15+N16+N17+N18 -> 52173 | P20: =P13+P15+P16+P17+P18 -> 38534 | Q20: 86939 | R20: 29923 | S20: 23549 | T20: 20913 | U20: 199858
B21: =Interfaz!$A$22 -> Elaboración: Área de Estadística - RIS Huaura Oyón.
G25: 1 | H25: =VLOOKUP($G$25,Poblacion!$C$8:$E$93,3,FALSE) -> HUAURA - OYON
B26: POBLACION POR ETAPAS DE VIDA | C26: TOTAL | E26: PORC. (%) | H26: =+"POBLACION POR ETAPAS DE VIDA DEL "&$H$25 -> POBLACION POR ETAPAS DE VIDA DEL HUAURA - OYON
H27: =B30 -> Niño (0-11años) | I27: =C30 -> 50900
A28: 81 | B28: Infantil (Men.1año) | C28: =VLOOKUP($G$25,Poblacion!$C$8:$CP$93,$A28) -> 4415 | E28: =IFERROR(($C28/$C$37)*100,0) -> 1.751768632 | H28: =B32 -> Adolescente (12-17años) | I28: 23288
A29: 82 | B29: Pre-escolar (01-04años) | C29: =VLOOKUP($G$25,Poblacion!$C$8:$CP$93,$A29) -> 16341 | E29: 6.483726208 | H29: Adulto Joven (18-29años) | I29: 51541
A30: 83 | B30: Niño (0-11años) | C30: =VLOOKUP($G$25,Poblacion!$C$8:$CP$93,$A30) -> 50900 | E30: 20.19592828 | H30: Adulto (30-59años) | I30: 92568
A31: 84 | B31: Escolar (05-17años) | C31: =VLOOKUP($G$25,Poblacion!$C$8:$CP$93,$A31) -> 53432 | E31: 21.2005666 | H31: Adu.Mayor (60 a MAS) | I31: 33734
A32: 85 | B32: Adolescente (12-17años) | C32: =VLOOKUP($G$25,Poblacion!$C$8:$CP$93,$A32) -> 23288 | E32: 9.240133158
A33: 86 | B33: Adulto Joven (18-29años) | C33: =VLOOKUP($G$25,Poblacion!$C$8:$CP$93,$A33) -> 51541 | E33: 20.45026207
A34: 87 | B34: Adulto (30-59años) | C34: =VLOOKUP($G$25,Poblacion!$C$8:$CP$93,$A34) -> 92568 | E34: 36.72881511
A35: 88 | B35: Adu.Mayor (60 a MAS) | C35: =VLOOKUP($G$25,Poblacion!$C$8:$CP$93,$A35) -> 33734 | E35: 13.38486139
A36: 79 | B36: Gestantes | C36: =VLOOKUP($G$25,Poblacion!$C$8:$CP$93,$A36) -> 5947 | E36: 2.359630363
B37: TOTAL | C37: =C30+C32+C33+C34+C35 -> 252031 | E37: 100
B38: =Interfaz!$A$22 -> Elaboración: Área de Estadística - RIS Huaura Oyón.

Sheet Pobla_EESS
D2: POBLACIÓN SEGÚN DISTRITOS Y EE.SS - 2012
D8: SIN MICRORED | K8: MICRORED HUALMAY
D9: DISTRITO | E9: POBLACIÓN | F9: EE.SS | G9: POBLACIÓN | H9: MASCULINO | I9: FEMENINO | K9: DISTRITO | L9: POBLACIÓN | M9: EE.SS | N9: POBLACIÓN | O9: MASCULINO | P9: FEMENINO
D10: HUACHO | E10: =G10 -> 52173 | F10: HOSPITAL HUACHO | G10: =VLOOKUP($F10,Poblacion!$E$8:$I$87,2,FALSE) -> 52173 | H10: =VLOOKUP($F10,Poblacion!$E$8:$I$87,4,FALSE) -> 25663 | I10: =VLOOKUP($F10,Poblacion!$E$8:$I$87,5,FALSE) -> 26510 | K10: HUALMAY | L10: =SUM(N10:N12) -> 27960 | M10: C.S. HUALMAY | N10: =VLOOKUP($M10,Poblacion!$E$8:$I$87,2,FALSE) -> 13980 | O10: =VLOOKUP($M10,Poblacion!$E$8:$I$87,4,FALSE) -> 6949 | P10: =VLOOKUP($M10,Poblacion!$E$8:$I$87,5,FALSE) -> 7031
D11: HUACHO | F11: CLINICA SAN PEDRO | G11: 0 | K11: HUALMAY | M11: P.S. DGO. MANDAMIENTO | N11: =VLOOKUP($M11,Poblacion!$E$8:$I$87,2,FALSE) -> 9786 | O11: =VLOOKUP($M11,Poblacion!$E$8:$I$87,4,FALSE) -> 4864 | P11: =VLOOKUP($M11,Poblacion!$E$8:$I$87,5,FALSE) -> 4922
D12: HUACHO | F12: ESSALUD GUSTAVO LA NATA | G12: 0 | K12: HUALMAY | M12: P.S. CAMPO ALEGRE | N12: =VLOOKUP($M12,Poblacion!$E$8:$I$87,2,FALSE) -> 4194 | O12: =VLOOKUP($M12,Poblacion!$E$8:$I$87,4,FALSE) -> 2085 | P12: =VLOOKUP($M12,Poblacion!$E$8:$I$87,5,FALSE) -> 2109
D13: HUACHO | F13: CLINICA SAN BARTOLOME | G13: 0 | K13: S.MARIA | L13: =SUM(N13:N17) -> 35208 | M13: C.S. SANTA MARIA | N13: =VLOOKUP($M13,Poblacion!$E$8:$I$87,2,FALSE) -> 9858 | O13: =VLOOKUP($M13,Poblacion!$E$8:$I$87,4,FALSE) -> 4971 | P13: =VLOOKUP($M13,Poblacion!$E$8:$I$87,5,FALSE) -> 4887
D14: HUACHO | F14: GOLD ESTANDAR EIRL. | G14: 0 | K14: S.MARIA | M14: P.S. CHONTA | N14: =VLOOKUP($M14,Poblacion!$E$8:$I$87,2,FALSE) -> 5281 | O14: =VLOOKUP($M14,Poblacion!$E$8:$I$87,4,FALSE) -> 2663 | P14: =VLOOKUP($M14,Poblacion!$E$8:$I$87,5,FALSE) -> 2618
D15: CARQUIN | F15: INSITUTO NACIONAL PENITENCIARIO CARQUIN | G15: 0 | K15: S.MARIA | M15: P.S. ZAPATA | N15: =VLOOKUP($M15,Poblacion!$E$8:$I$87,2,FALSE) -> 2817 | O15: =VLOOKUP($M15,Poblacion!$E$8:$I$87,4,FALSE) -> 1420 | P15: =VLOOKUP($M15,Poblacion!$E$8:$I$87,5,FALSE) -> 1397
F16: OTROS ESTABLECIMIENTOS | G16: 0 | K16: S.MARIA | M16: P.S. AMADO VELASQUEZ | N16: =VLOOKUP($M16,Poblacion!$E$8:$I$87,2,FALSE) -> 9858 | O16: =VLOOKUP($M16,Poblacion!$E$8:$I$87,4,FALSE) -> 4971 | P16: =VLOOKUP($M16,Poblacion!$E$8:$I$87,5,FALSE) -> 4887
D17: TOTAL SIN MICRORED | G17: =SUM(G10:G16) -> 52173 | H17: =SUM(H10:H16) -> 25663 | I17: =SUM(I10:I16) -> 26510 | K17: S.MARIA | M17: P.S. SAN BARTOLOME | N17: =VLOOKUP($M17,Poblacion!$E$8:$I$87,2,FALSE) -> 7394 | O17: =VLOOKUP($M17,Poblacion!$E$8:$I$87,4,FALSE) -> 3730 | P17: =VLOOKUP($M17,Poblacion!$E$8:$I$87,5,FALSE) -> 3664
D18: ='etapas y mredes'!B21 -> Elaboración: Área de Estadística - RIS Huaura Oyón. | K18: CARQUIN | L18: =N18 -> 6380 | M18: P.S. CARQUIN | N18: =VLOOKUP($M18,Poblacion!$E$8:$I$87,2,FALSE) -> 6380 | O18: =VLOOKUP($M18,Poblacion!$E$8:$I$87,4,FALSE) -> 3285 | P18: =VLOOKUP($M18,Poblacion!$E$8:$I$87,5,FALSE) -> 3095
K19: HUACHO | L19: =N19 -> 17391 | M19: C.S. MANZANARES | N19: =VLOOKUP($M19,Poblacion!$E$8:$I$87,2,FALSE) -> 17391 | O19: =VLOOKUP($M19,Poblacion!$E$8:$I$87,4,FALSE) -> 8554 | P19: =VLOOKUP($M19,Poblacion!$E$8:$I$87,5,FALSE) -> 8837
K20: TOTAL MCR HUALMAY | M20: TOTAL MICRORED HUALMAY | N20: =SUM(N10:N19) -> 86939 | O20: =SUM(O10:O19) -> 43492 | P20: =SUM(P10:P19) -> 43447
K21: =D18 -> Elaboración: Área de Estadística - RIS Huaura Oyón.
D24: MICRORED HUAURA | K24: MICRORED VEGUETA
D25: DISTRITO | E25: POBLACIÓN | F25: EE.SS | G25: POBLACIÓN | H25: MASCULINO | I25: FEMENINO | K25: DISTRITO | L25: POBLACIÓN | M25: EE.SS | N25: POBLACIÓN | O25: MASCULINO | P25: FEMENINO
D26: HUAURA | E26: =SUM(G26:G30) -> 36324 | F26: C.S. HUAURA | G26: =VLOOKUP($F26,Poblacion!$E$8:$I$87,2,FALSE) -> 16345 | H26: =VLOOKUP($F26,Poblacion!$E$8:$I$87,4,FALSE) -> 8277 | I26: =VLOOKUP($F26,Poblacion!$E$8:$I$87,5,FALSE) -> 8068 | K26: VEGUETA | L26: =SUM(N26:N31) -> 23549 | M26: C.S. VEGUETA | N26: =VLOOKUP($M26,Poblacion!$E$8:$I$87,2,FALSE) -> 7064 | O26: =VLOOKUP($M26,Poblacion!$E$8:$I$87,4,FALSE) -> 3574 | P26: =VLOOKUP($M26,Poblacion!$E$8:$I$87,5,FALSE) -> 3490
D27: HUAURA | F27: C.S. SOCORRO | G27: =VLOOKUP($F27,Poblacion!$E$8:$I$87,2,FALSE) -> 13803 | H27: =VLOOKUP($F27,Poblacion!$E$8:$I$87,4,FALSE) -> 6989 | I27: =VLOOKUP($F27,Poblacion!$E$8:$I$87,5,FALSE) -> 6814 | K27: VEGUETA | M27: P.S. MAZO | N27: =VLOOKUP($M27,Poblacion!$E$8:$I$87,2,FALSE) -> 2355 | O27: =VLOOKUP($M27,Poblacion!$E$8:$I$87,4,FALSE) -> 1192 | P27: =VLOOKUP($M27,Poblacion!$E$8:$I$87,5,FALSE) -> 1163
D28: HUAURA | F28: P.S. HUMAYA | G28: =VLOOKUP($F28,Poblacion!$E$8:$I$87,2,FALSE) -> 3633 | H28: =VLOOKUP($F28,Poblacion!$E$8:$I$87,4,FALSE) -> 1839 | I28: =VLOOKUP($F28,Poblacion!$E$8:$I$87,5,FALSE) -> 1794 | K28: VEGUETA | M28: P.S. PRIMAVERA | N28: =VLOOKUP($M28,Poblacion!$E$8:$I$87,2,FALSE) -> 3297 | O28: =VLOOKUP($M28,Poblacion!$E$8:$I$87,4,FALSE) -> 1668 | P28: =VLOOKUP($M28,Poblacion!$E$8:$I$87,5,FALSE) -> 1629
D29: HUAURA | F29: P.S. VILCAHUAURA | G29: =VLOOKUP($F29,Poblacion!$E$8:$I$87,2,FALSE) -> 2179 | H29: =VLOOKUP($F29,Poblacion!$E$8:$I$87,4,FALSE) -> 1104 | I29: =VLOOKUP($F29,Poblacion!$E$8:$I$87,5,FALSE) -> 1075 | K29: VEGUETA | M29: P.S. MARIATEGUI | N29: =VLOOKUP($M29,Poblacion!$E$8:$I$87,2,FALSE) -> 5652 | O29: =VLOOKUP($M29,Poblacion!$E$8:$I$87,4,FALSE) -> 2859 | P29: =VLOOKUP($M29,Poblacion!$E$8:$I$87,5,FALSE) -> 2793
D30: HUAURA | F30: P.S. PEÑICO | G30: =VLOOKUP($F30,Poblacion!$E$8:$I$87,2,FALSE) -> 364 | H30: =VLOOKUP($F30,Poblacion!$E$8:$I$87,4,FALSE) -> 184 | I30: =VLOOKUP($F30,Poblacion!$E$8:$I$87,5,FALSE) -> 180 | K30: VEGUETA | M30: P.S. MEDIO MUNDO | N30: =VLOOKUP($M30,Poblacion!$E$8:$I$87,2,FALSE) -> 4239 | O30: =VLOOKUP($M30,Poblacion!$E$8:$I$87,4,FALSE) -> 2145 | P30: =VLOOKUP($M30,Poblacion!$E$8:$I$87,5,FALSE) -> 2094
D31: AMBAR | E31: =SUM(G31:G32) -> 2210 | F31: C.S. AMBAR | G31: =VLOOKUP($F31,Poblacion!$E$8:$I$87,2,FALSE) -> 1323 | H31: =VLOOKUP($F31,Poblacion!$E$8:$I$87,4,FALSE) -> 718 | I31: =VLOOKUP($F31,Poblacion!$E$8:$I$87,5,FALSE) -> 605 | K31: VEGUETA | M31: P.S. TIROLER | N31: =VLOOKUP($M31,Poblacion!$E$8:$I$87,2,FALSE) -> 942 | O31: =VLOOKUP($M31,Poblacion!$E$8:$I$87,4,FALSE) -> 477 | P31: =VLOOKUP($M31,Poblacion!$E$8:$I$87,5,FALSE) -> 465
D32: AMBAR | F32: P.S. AYNACA | G32: =VLOOKUP($F32,Poblacion!$E$8:$I$87,2,FALSE) -> 887 | H32: =VLOOKUP($F32,Poblacion!$E$8:$I$87,4,FALSE) -> 479 | I32: =VLOOKUP($F32,Poblacion!$E$8:$I$87,5,FALSE) -> 408 | K32: TOTAL MCR VEGUETA | N32: =SUM(N26:N31) -> 23549 | O32: =SUM(O26:O31) -> 11915 | P32: =SUM(P26:P31) -> 11634
D33: TOTAL MCR HUAURA | F33: TOTAL MICRORED HUAURA | G33: =SUM(G26:G32) -> 38534 | H33: =SUM(H26:H32) -> 19590 | I33: 18944 | K33: =K21 -> Elaboración: Área de Estadística - RIS Huaura Oyón.
D34: =K21 -> Elaboración: Área de Estadística - RIS Huaura Oyón.
D38: MICRORED SAYAN | K38: MICRORED CHURIN OYÓN
D39: DISTRITO | E39: POBLACIÓN | F39: EE.SS | G39: POBLACIÓN | H39: MASCULINO | I39: FEMENINO | K39: DISTRITO | L39: POBLACIÓN | M39: EE.SS | N39: POBLACIÓN | O39: MASCULINO | P39: FEMENINO
D40: SAYAN | E40: =SUM(G40:G46) -> 24187 | F40: C.S. SAYAN | G40: =VLOOKUP($F40,Poblacion!$E$8:$I$87,2,FALSE) -> 9674 | H40: =VLOOKUP($F40,Poblacion!$E$8:$I$87,4,FALSE) -> 4943 | I40: =VLOOKUP($F40,Poblacion!$E$8:$I$87,5,FALSE) -> 4731 | K40: PACHANGARA | L40: =SUM(N40:N42) -> 3242 | M40: C.S. CHURIN | N40: =VLOOKUP(M40,Poblacion!$E$5:$I$88,2,FALSE) -> 2010 | O40: =VLOOKUP(M40,Poblacion!$E$5:$I$88,4,FALSE) -> 1026 | P40: =VLOOKUP(M40,Poblacion!$E$5:$I$88,5,FALSE) -> 984
D41: SAYAN | F41: C.S. 9 DE OCTUBRE | G41: =VLOOKUP($F41,Poblacion!$E$8:$I$87,2,FALSE) -> 5563 | H41: =VLOOKUP($F41,Poblacion!$E$8:$I$87,4,FALSE) -> 2843 | I41: =VLOOKUP($F41,Poblacion!$E$8:$I$87,5,FALSE) -> 2720 | K41: PACHANGARA | M41: P.S. PACHANGARA | N41: =VLOOKUP(M41,Poblacion!$E$5:$I$88,2,FALSE) -> 584 | O41: =VLOOKUP(M41,Poblacion!$E$5:$I$88,4,FALSE) -> 298 | P41: =VLOOKUP(M41,Poblacion!$E$5:$I$88,5,FALSE) -> 286
D42: SAYAN | F42: P.S. CHAMBARA | G42: =VLOOKUP($F42,Poblacion!$E$8:$I$87,2,FALSE) -> 726 | H42: =VLOOKUP($F42,Poblacion!$E$8:$I$87,4,FALSE) -> 371 | I42: =VLOOKUP($F42,Poblacion!$E$8:$I$87,5,FALSE) -> 355 | K42: PACHANGARA | M42: P.S. HUANCAHUASI | N42: =VLOOKUP(M42,Poblacion!$E$5:$I$88,2,FALSE) -> 648 | O42: =VLOOKUP(M42,Poblacion!$E$5:$I$88,4,FALSE) -> 331 | P42: =VLOOKUP(M42,Poblacion!$E$5:$I$88,5,FALSE) -> 317
D43: SAYAN | F43: P.S. LA MERCED | G43: =VLOOKUP($F43,Poblacion!$E$8:$I$87,2,FALSE) -> 1209 | H43: =VLOOKUP($F43,Poblacion!$E$8:$I$87,4,FALSE) -> 618 | I43: =VLOOKUP($F43,Poblacion!$E$8:$I$87,5,FALSE) -> 591 | K43: OYON | L43: =SUM(N43:N47) -> 11412 | M43: C.S. OYON | N43: =VLOOKUP(M43,Poblacion!$E$5:$I$88,2,FALSE) -> 8445 | O43: =VLOOKUP(M43,Poblacion!$E$5:$I$88,4,FALSE) -> 4179 | P43: =VLOOKUP(M43,Poblacion!$E$5:$I$88,5,FALSE) -> 4266
D44: SAYAN | F44: P.S. LA VILLA | G44: =VLOOKUP($F44,Poblacion!$E$8:$I$87,2,FALSE) -> 6047 | H44: =VLOOKUP($F44,Poblacion!$E$8:$I$87,4,FALSE) -> 3090 | I44: =VLOOKUP($F44,Poblacion!$E$8:$I$87,5,FALSE) -> 2957 | K44: OYON | M44: P.S. MALLAY | N44: =VLOOKUP(M44,Poblacion!$E$5:$I$88,2,FALSE) -> 913 | O44: =VLOOKUP(M44,Poblacion!$E$5:$I$88,4,FALSE) -> 452 | P44: =VLOOKUP(M44,Poblacion!$E$5:$I$88,5,FALSE) -> 461
D45: SAYAN | F45: P.S. EL AHORCADO | G45: =VLOOKUP($F45,Poblacion!$E$8:$I$87,2,FALSE) -> 484 | H45: =VLOOKUP($F45,Poblacion!$E$8:$I$87,4,FALSE) -> 247 | I45: =VLOOKUP($F45,Poblacion!$E$8:$I$87,5,FALSE) -> 237 | K45: OYON | M45: P.S. NAVA | N45: =VLOOKUP(M45,Poblacion!$E$5:$I$88,2,FALSE) -> 114 | O45: =VLOOKUP(M45,Poblacion!$E$5:$I$88,4,FALSE) -> 56 | P45: =VLOOKUP(M45,Poblacion!$E$5:$I$88,5,FALSE) -> 58
D46: SAYAN | F46: P.S. LA UNION | G46: =VLOOKUP($F46,Poblacion!$E$8:$I$87,2,FALSE) -> 484 | H46: =VLOOKUP($F46,Poblacion!$E$8:$I$87,4,FALSE) -> 247 | I46: =VLOOKUP($F46,Poblacion!$E$8:$I$87,5,FALSE) -> 237 | K46: OYON | M46: P.S. TINTA | N46: =VLOOKUP(M46,Poblacion!$E$5:$I$88,2,FALSE) -> 799 | O46: =VLOOKUP(M46,Poblacion!$E$5:$I$88,4,FALSE) -> 395 | P46: =VLOOKUP(M46,Poblacion!$E$5:$I$88,5,FALSE) -> 404
D47: L.PRADO | E47: =SUM(G47:G50) -> 2397 | F47: P.S. AUQUIMARCA | G47: =VLOOKUP($F47,Poblacion!$E$8:$I$87,2,FALSE) -> 120 | H47: =VLOOKUP($F47,Poblacion!$E$8:$I$87,4,FALSE) -> 66 | I47: =VLOOKUP($F47,Poblacion!$E$8:$I$87,5,FALSE) -> 54 | K47: OYON | M47: P.S. RAPAZ | N47: =VLOOKUP(M47,Poblacion!$E$5:$I$88,2,FALSE) -> 1141 | O47: =VLOOKUP(M47,Poblacion!$E$5:$I$88,4,FALSE) -> 565 | P47: =VLOOKUP(M47,Poblacion!$E$5:$I$88,5,FALSE) -> 576
D48: L.PRADO | F48: P.S. PARAN | G48: =VLOOKUP($F48,Poblacion!$E$8:$I$87,2,FALSE) -> 1199 | H48: =VLOOKUP($F48,Poblacion!$E$8:$I$87,4,FALSE) -> 660 | I48: =VLOOKUP($F48,Poblacion!$E$8:$I$87,5,FALSE) -> 539 | K48: ANDAJES | L48: =N48 -> 604 | M48: P.S. ANDAJES | N48: =VLOOKUP(M48,Poblacion!$E$5:$I$88,2,FALSE) -> 604 | O48: =VLOOKUP(M48,Poblacion!$E$5:$I$88,4,FALSE) -> 286 | P48: =VLOOKUP(M48,Poblacion!$E$5:$I$88,5,FALSE) -> 318
D49: L.PRADO | F49: P.S. SANTA CRUZ | G49: =VLOOKUP($F49,Poblacion!$E$8:$I$87,2,FALSE) -> 479 | H49: =VLOOKUP($F49,Poblacion!$E$8:$I$87,4,FALSE) -> 264 | I49: =VLOOKUP($F49,Poblacion!$E$8:$I$87,5,FALSE) -> 215 | K49: CAUJUL | L49: =N49 -> 633 | M49: P.S. CAUJUL | N49: =VLOOKUP(M49,Poblacion!$E$5:$I$88,2,FALSE) -> 633 | O49: =VLOOKUP(M49,Poblacion!$E$5:$I$88,4,FALSE) -> 314 | P49: =VLOOKUP(M49,Poblacion!$E$5:$I$88,5,FALSE) -> 319
D50: L.PRADO | F50: P.S. HUANANGUI | G50: =VLOOKUP($F50,Poblacion!$E$8:$I$87,2,FALSE) -> 599 | H50: =VLOOKUP($F50,Poblacion!$E$8:$I$87,4,FALSE) -> 330 | I50: =VLOOKUP($F50,Poblacion!$E$8:$I$87,5,FALSE) -> 269 | K50: NAVAN | L50: 1060 | M50: P.S. NAVAN | N50: =VLOOKUP(M50,Poblacion!$E$5:$I$88,2,FALSE) -> 1060 | O50: =VLOOKUP(M50,Poblacion!$E$5:$I$88,4,FALSE) -> 528 | P50: =VLOOKUP(M50,Poblacion!$E$5:$I$88,5,FALSE) -> 532
D51: COCHAMARCA | E51: =SUM(G51:G53) -> 1874 | F51: P.S. COCHAMARCA | G51: =VLOOKUP($F51,Poblacion!$E$8:$I$87,2,FALSE) -> 750 | H51: =VLOOKUP($F51,Poblacion!$E$8:$I$87,4,FALSE) -> 388 | I51: =VLOOKUP($F51,Poblacion!$E$8:$I$87,5,FALSE) -> 362 | K51: CHECRAS | L51: 1018 | M51: P.S. PUÑUN | N51: =VLOOKUP(M51,Poblacion!$E$5:$I$88,2,FALSE) -> 1018 | O51: =VLOOKUP(M51,Poblacion!$E$5:$I$88,4,FALSE) -> 501 | P51: =VLOOKUP(M51,Poblacion!$E$5:$I$88,5,FALSE) -> 517
D52: COCHAMARCA | F52: P.S. COLCAPAMPA | G52: =VLOOKUP($F52,Poblacion!$E$8:$I$87,2,FALSE) -> 862 | H52: =VLOOKUP($F52,Poblacion!$E$8:$I$87,4,FALSE) -> 446 | I52: =VLOOKUP($F52,Poblacion!$E$8:$I$87,5,FALSE) -> 416 | K52: PACCHO | L52: =SUM(N52:N55) -> 1621 | M52: P.S. PACCHO | N52: =VLOOKUP(M52,Poblacion!$E$5:$I$88,2,FALSE) -> 649 | O52: =VLOOKUP(M52,Poblacion!$E$5:$I$88,4,FALSE) -> 330 | P52: =VLOOKUP(M52,Poblacion!$E$5:$I$88,5,FALSE) -> 319
D53: COCHAMARCA | F53: P.S. YARUCAYA | G53: =VLOOKUP($F53,Poblacion!$E$8:$I$87,2,FALSE) -> 262 | H53: =VLOOKUP($F53,Poblacion!$E$8:$I$87,4,FALSE) -> 136 | I53: =VLOOKUP($F53,Poblacion!$E$8:$I$87,5,FALSE) -> 126 | K53: PACCHO | M53: P.S. LACSANGA | N53: =VLOOKUP(M53,Poblacion!$E$5:$I$88,2,FALSE) -> 486 | O53: =VLOOKUP(M53,Poblacion!$E$5:$I$88,4,FALSE) -> 248 | P53: =VLOOKUP(M53,Poblacion!$E$5:$I$88,5,FALSE) -> 238
D54: IHUARI - ACOTAMA | E54: =SUM(G54) -> 1465 | F54: IHUARI - ACOTAMA | G54: =VLOOKUP($F54,Poblacion!$E$8:$I$87,2,FALSE) -> 1465 | H54: =VLOOKUP($F54,Poblacion!$E$8:$I$87,4,FALSE) -> 788 | I54: =VLOOKUP($F54,Poblacion!$E$8:$I$87,5,FALSE) -> 677 | K54: PACCHO | M54: P.S. AYARANGA | N54: =VLOOKUP(M54,Poblacion!$E$5:$I$88,2,FALSE) -> 243 | O54: =VLOOKUP(M54,Poblacion!$E$5:$I$88,4,FALSE) -> 124 | P54: =VLOOKUP(M54,Poblacion!$E$5:$I$88,5,FALSE) -> 119
D55: TOTAL MICRORED SAYAN | G55: =SUM(G40:G54) -> 29923 | H55: =SUM(H40:H54) -> 15437 | I55: 14486 | K55: PACCHO | M55: P.S. MUZGA | N55: =VLOOKUP(M55,Poblacion!$E$5:$I$88,2,FALSE) -> 243 | O55: =VLOOKUP(M55,Poblacion!$E$5:$I$88,4,FALSE) -> 124 | P55: =VLOOKUP(M55,Poblacion!$E$5:$I$88,5,FALSE) -> 119
D56: =K33 -> Elaboración: Área de Estadística - RIS Huaura Oyón. | K56: S.LEONOR | L56: =SUM(N56:N58) -> 1323 | M56: P.S. CHIUCHIN | N56: =VLOOKUP(M56,Poblacion!$E$5:$I$88,2,FALSE) -> 821 | O56: =VLOOKUP(M56,Poblacion!$E$5:$I$88,4,FALSE) -> 442 | P56: =VLOOKUP(M56,Poblacion!$E$5:$I$88,5,FALSE) -> 379
K57: S.LEONOR | M57: P.S. PARQUIN | N57: =VLOOKUP(M57,Poblacion!$E$5:$I$88,2,FALSE) -> 370 | O57: =VLOOKUP(M57,Poblacion!$E$5:$I$88,4,FALSE) -> 199 | P57: =VLOOKUP(M57,Poblacion!$E$5:$I$88,5,FALSE) -> 171
K58: S.LEONOR | M58: P.S. JUCUL | N58: =VLOOKUP(M58,Poblacion!$E$5:$I$88,2,FALSE) -> 132 | O58: =VLOOKUP(M58,Poblacion!$E$5:$I$88,4,FALSE) -> 71 | P58: =VLOOKUP(M58,Poblacion!$E$5:$I$88,5,FALSE) -> 61
K59: TOTAL MICRORED CHURIN - OYON | N59: =SUM(N40:N58) -> 20913 | O59: =SUM(O40:O58) -> 10469 | P59: 10444
K60: =K33 -> Elaboración: Área de Estadística - RIS Huaura Oyón.
